Body,Body name,Date,Transaction number,Amount,Non recoverable VAT included in amount,Supplier name,Supplier ID,Expense area,Fund type,Expense type,Category description,
http://statistics.data.gov.uk/search?search=E07000114,Thanet District Council,05/04/2017,428764,350.00,,Access Intelligence Media & Comm Ltd,ALL036,Corporate Resources and S151,Revenue,Communications & Computing,ICT,
http://statistics.data.gov.uk/search?search=E07000114,Thanet District Council,05/04/2017,428746,450.00,,Amenity Horticultural Serv Ltd,AME001,Operational Services,Revenue,"Equip, Furniture And Materials",Horticultural,
http://statistics.data.gov.uk/search?search=E07000114,Thanet District Council,05/04/2017,428749,450.00,,Amenity Horticultural Serv Ltd,AME001,Operational Services,Revenue,"Equip, Furniture And Materials",Horticultural,
http://statistics.data.gov.uk/search?search=E07000114,Thanet District Council,05/04/2017,429525,400.00,,Anna Becvar Consultancy,BEC002,Operational Services,Revenue,Cont Hire & Operating Lease,Consultancy,
http://statistics.data.gov.uk/search?search=E07000114,Thanet District Council,05/04/2017,429159,6975.00,,Avia Solutions Limited,AVI004,Community Services,Revenue,Services,Consultancy,
http://statistics.data.gov.uk/search?search=E07000114,Thanet District Council,05/04/2017,428908,475.00,,Brett Aggregates Limited,BRE021,Operational Services,Revenue,"Repairs,  Alter & Mtce - Build",Construction-Repair And Maint,
http://statistics.data.gov.uk/search?search=E07000114,Thanet District Council,05/04/2017,429183,679.50,,Buzzlines Travel Ltd,BUZ001,Community Services,Revenue,Services,Agency Payments,
http://statistics.data.gov.uk/search?search=E07000114,Thanet District Council,05/04/2017,427846,901.76,,Canon (Uk) Ltd,CAN021,Corporate Governance,Revenue,"Print, Stat And Gen Off Exps",Facilities And Management Serv,
http://statistics.data.gov.uk/search?search=E07000114,Thanet District Council,05/04/2017,427912,54.34,,E Saunders Margate Ltd,SAU001,Community Services,Revenue,"Repairs,  Alter & Mtce - Build",Construction-Repair And Maint,
http://statistics.data.gov.uk/search?search=E07000114,Thanet District Council,05/04/2017,427912,272.13,,E Saunders Margate Ltd,SAU001,Corporate Governance,Revenue,"Repairs,  Alter & Mtce - Build",Construction-Repair And Maint,
http://statistics.data.gov.uk/search?search=E07000114,Thanet District Council,05/04/2017,427912,48.30,,E Saunders Margate Ltd,SAU001,Operational Services,Revenue,"Repairs,  Alter & Mtce - Build",Construction-Repair And Maint,
http://statistics.data.gov.uk/search?search=E07000114,Thanet District Council,05/04/2017,429336,476.20,,Farrer Barnes Limited,FAR012,Corporate Resources and S151,Revenue,Agency Staff,Human Resources,
http://statistics.data.gov.uk/search?search=E07000114,Thanet District Council,05/04/2017,429337,605.32,,Farrer Barnes Limited,FAR012,Corporate Resources and S151,Revenue,Agency Staff,Human Resources,
http://statistics.data.gov.uk/search?search=E07000114,Thanet District Council,05/04/2017,429146,16574.00,,Grant Thornton Uk Llp,GRA048,Corporate Resources and S151,Revenue,Services,Financial Services,
http://statistics.data.gov.uk/search?search=E07000114,Thanet District Council,05/04/2017,429155,357.00,,Guardian Security & Fire Ltd,GUA005,Operational Services,Revenue,"Repairs,  Alter & Mtce - Build",Health And Safety,
http://statistics.data.gov.uk/search?search=E07000114,Thanet District Council,05/04/2017,429157,357.00,,Guardian Security & Fire Ltd,GUA005,Operational Services,Revenue,"Repairs,  Alter & Mtce - Build",Health And Safety,
http://statistics.data.gov.uk/search?search=E07000114,Thanet District Council,05/04/2017,429232,3800.00,,Gva Grimley Limited,GVA001,Corporate Resources and S151,Balance Sheet,Other Land And Buildings-Hra,Consultancy,
http://statistics.data.gov.uk/search?search=E07000114,Thanet District Council,05/04/2017,428280,3000.00,,Hays Specialist Recruitment Ltd,HAY020,Corporate Resources and S151,Revenue,Services,Human Resources,
http://statistics.data.gov.uk/search?search=E07000114,Thanet District Council,05/04/2017,429152,3000.00,,Hays Specialist Recruitment Ltd,HAY020,Corporate Resources and S151,Revenue,Services,Human Resources,
http://statistics.data.gov.uk/search?search=E07000114,Thanet District Council,05/04/2017,429377,1202.50,,Hays Specialist Recruitment Ltd,HAY020,Corporate Resources and S151,Balance Sheet,Council Dwellings,Human Resources,
http://statistics.data.gov.uk/search?search=E07000114,Thanet District Council,05/04/2017,429379,1088.75,,Hays Specialist Recruitment Ltd,HAY020,Corporate Resources and S151,Balance Sheet,Council Dwellings,Human Resources,
http://statistics.data.gov.uk/search?search=E07000114,Thanet District Council,05/04/2017,429381,3000.00,,Hays Specialist Recruitment Ltd,HAY020,Corporate Resources and S151,Revenue,Services,Human Resources,
http://statistics.data.gov.uk/search?search=E07000114,Thanet District Council,05/04/2017,429307,1650.00,,Heath Lambert Limited (Client Money),HEA011,Corporate Resources and S151,Balance Sheet,Insurance Holding Account,Financial Services,
http://statistics.data.gov.uk/search?search=E07000114,Thanet District Council,05/04/2017,429308,107147.70,,Heath Lambert Limited (Client Money),HEA011,Corporate Resources and S151,Balance Sheet,Insurance Holding Account,Financial Services,
http://statistics.data.gov.uk/search?search=E07000114,Thanet District Council,05/04/2017,429309,96231.65,,Heath Lambert Limited (Client Money),HEA011,Corporate Resources and S151,Balance Sheet,Insurance Holding Account,Financial Services,
http://statistics.data.gov.uk/search?search=E07000114,Thanet District Council,05/04/2017,429310,-4417.54,,Heath Lambert Limited (Client Money),HEA011,Corporate Resources and S151,Balance Sheet,Insurance Holding Account,Financial Services,
http://statistics.data.gov.uk/search?search=E07000114,Thanet District Council,05/04/2017,429311,4427.58,,Heath Lambert Limited (Client Money),HEA011,Corporate Resources and S151,Balance Sheet,Insurance Holding Account,Financial Services,
http://statistics.data.gov.uk/search?search=E07000114,Thanet District Council,05/04/2017,428855,985.00,,High Five Training Limited,HIG009,Operational Services,Revenue,Training,Human Resources,
http://statistics.data.gov.uk/search?search=E07000114,Thanet District Council,05/04/2017,428340,475.82,,Hr Go (Kent) Ltd,HRG001,Community Services,Revenue,Agency Staff,Human Resources,
http://statistics.data.gov.uk/search?search=E07000114,Thanet District Council,05/04/2017,428866,529.47,,Hr Go (Kent) Ltd,HRG001,Community Services,Revenue,Agency Staff,Human Resources,
http://statistics.data.gov.uk/search?search=E07000114,Thanet District Council,05/04/2017,428872,475.82,,Hr Go (Kent) Ltd,HRG001,Community Services,Revenue,Agency Staff,Human Resources,
http://statistics.data.gov.uk/search?search=E07000114,Thanet District Council,05/04/2017,428874,219.45,,Hr Go (Kent) Ltd,HRG001,Corporate Governance,Revenue,Agency Staff,Human Resources,
http://statistics.data.gov.uk/search?search=E07000114,Thanet District Council,05/04/2017,429511,529.47,,Hr Go (Kent) Ltd,HRG001,Community Services,Revenue,Agency Staff,Human Resources,
http://statistics.data.gov.uk/search?search=E07000114,Thanet District Council,05/04/2017,428726,1237.70,,Hyder South East Ltd,HYD015,Operational Services,Revenue,Direct Transport Costs,Vehicle Management,
http://statistics.data.gov.uk/search?search=E07000114,Thanet District Council,05/04/2017,428924,3000.00,,Kent County Council,KCC002,Community Services,Revenue,Services,Various Cats - Public Sector,
http://statistics.data.gov.uk/search?search=E07000114,Thanet District Council,05/04/2017,428925,1500.00,,Kent County Council,KCC002,Community Services,Revenue,"Print, Stat And Gen Off Exps",Various Cats - Public Sector,
http://statistics.data.gov.uk/search?search=E07000114,Thanet District Council,05/04/2017,429335,2210.01,,Km Media Group Limited,KMM001,East Kent Shared Services,Revenue,Miscellaneous Expenses,Facilities And Management Serv,
http://statistics.data.gov.uk/search?search=E07000114,Thanet District Council,05/04/2017,429407,1200.00,,Km Media Group Limited,KMM001,Corporate Resources and S151,Revenue,Miscellaneous Expenses,Facilities And Management Serv,
http://statistics.data.gov.uk/search?search=E07000114,Thanet District Council,05/04/2017,429487,500.00,,Knowlton Project Support Ltd,KNO008,Community Services,Revenue,Services,Human Resources,
http://statistics.data.gov.uk/search?search=E07000114,Thanet District Council,05/04/2017,428885,4085.00,,Local Government Futures Ltd,LOC013,Corporate Resources and S151,Revenue,Grants & Subscriptions,Consultancy,
http://statistics.data.gov.uk/search?search=E07000114,Thanet District Council,05/04/2017,428920,493.04,,Lyreco Uk Limited,LYR001,Corporate Governance,Revenue,"Print, Stat And Gen Off Exps",Stationery,
http://statistics.data.gov.uk/search?search=E07000114,Thanet District Council,05/04/2017,429224,265.90,,Main Man Supplies Ltd,MAI001,Operational Services,Revenue,"Clothes, Uniforms & Laundry",Clothing,
http://statistics.data.gov.uk/search?search=E07000114,Thanet District Council,05/04/2017,429275,300.00,,Matt Hutchings,HUT003,Corporate Resources and S151,Balance Sheet,Other Land And Buildings-Hra,Legal Services,
http://statistics.data.gov.uk/search?search=E07000114,Thanet District Council,05/04/2017,429296,1800.00,,Michael Page Int Recruitment Ltd,PAG008,Corporate Resources and S151,Revenue,Services,Human Resources,
http://statistics.data.gov.uk/search?search=E07000114,Thanet District Council,05/04/2017,428932,475.00,,Michelle Williams,WIL064,Community Services,Revenue,Services,Arts And Leisure Services,
http://statistics.data.gov.uk/search?search=E07000114,Thanet District Council,05/04/2017,429258,509.50,,Midland Software Limited,MID013,East Kent Shared Services,Revenue,Communications & Computing,Ict,
http://statistics.data.gov.uk/search?search=E07000114,Thanet District Council,05/04/2017,429264,846.25,,Midland Software Limited,MID013,East Kent Shared Services,Revenue,Communications & Computing,Ict,
http://statistics.data.gov.uk/search?search=E07000114,Thanet District Council,05/04/2017,429265,2351.00,,Midland Software Limited,MID013,East Kent Shared Services,Revenue,Communications & Computing,Ict,
http://statistics.data.gov.uk/search?search=E07000114,Thanet District Council,05/04/2017,429266,8715.25,,Midland Software Limited,MID013,East Kent Shared Services,Revenue,Communications & Computing,Ict,
http://statistics.data.gov.uk/search?search=E07000114,Thanet District Council,05/04/2017,429267,845.00,,Midland Software Limited,MID013,East Kent Shared Services,Revenue,Communications & Computing,Ict,
http://statistics.data.gov.uk/search?search=E07000114,Thanet District Council,05/04/2017,429270,846.25,,Midland Software Limited,MID013,East Kent Shared Services,Revenue,Communications & Computing,Ict,
http://statistics.data.gov.uk/search?search=E07000114,Thanet District Council,05/04/2017,429272,846.25,,Midland Software Limited,MID013,East Kent Shared Services,Revenue,Communications & Computing,Ict,
http://statistics.data.gov.uk/search?search=E07000114,Thanet District Council,05/04/2017,428742,582.75,,Morgan Jones Ltd,MOR001,Community Services,Revenue,Agency Staff,Human Resources,
http://statistics.data.gov.uk/search?search=E07000114,Thanet District Council,05/04/2017,429171,3351.45,,Morgan Jones Ltd,MOR001,Chief Executive,Revenue,Agency Staff,Human Resources,
http://statistics.data.gov.uk/search?search=E07000114,Thanet District Council,05/04/2017,428922,280.00,,N K F Seymour Electrical Cont,SEY002,Community Services,Revenue,Services,Building Construction Material,
http://statistics.data.gov.uk/search?search=E07000114,Thanet District Council,05/04/2017,429297,5950.00,,Netcall Telecom Ltd,NET013,East Kent Shared Services,Revenue,Communications & Computing,Ict,
http://statistics.data.gov.uk/search?search=E07000114,Thanet District Council,05/04/2017,429312,441.00,,Ocs Group Uk Ltd T/A Cannon,OCS003,Corporate Governance,Revenue,Fixtures & Fittings,Cleaning And Janitorial,
http://statistics.data.gov.uk/search?search=E07000114,Thanet District Council,05/04/2017,429314,210.12,,Ocs Group Uk Ltd T/A Cannon,OCS003,Operational Services,Revenue,Fixtures & Fittings,Cleaning And Janitorial,
http://statistics.data.gov.uk/search?search=E07000114,Thanet District Council,05/04/2017,429317,383.76,,Ocs Group Uk Ltd T/A Cannon,OCS003,Corporate Governance,Revenue,Fixtures & Fittings,Cleaning And Janitorial,
http://statistics.data.gov.uk/search?search=E07000114,Thanet District Council,05/04/2017,428661,886.71,,Ocs Group Uk Ltd T/A Fountains,OCS005,Corporate Governance,Revenue,Cleaning & Domestic Supplies,Cleaning And Janitorial,
http://statistics.data.gov.uk/search?search=E07000114,Thanet District Council,05/04/2017,429151,869.85,,Ohuk Limited,OHU001,Operational Services,Revenue,Agency Staff,Human Resources,
http://statistics.data.gov.uk/search?search=E07000114,Thanet District Council,05/04/2017,429351,1325.00,,Oscar Associates (Uk) Limited,OSC001,East Kent Shared Services,Revenue,Agency Staff,Ict,
http://statistics.data.gov.uk/search?search=E07000114,Thanet District Council,05/04/2017,428852,1267.00,,Peter Baxter Associates Limited,PET014,Corporate Resources and S151,Balance Sheet,Community Assets,Construction-Repair And Maint,
http://statistics.data.gov.uk/search?search=E07000114,Thanet District Council,05/04/2017,425279,5662.60,,Potter Raper Partnership,POT006,Corporate Resources and S151,Balance Sheet,Council Dwellings,Consultancy,
http://statistics.data.gov.uk/search?search=E07000114,Thanet District Council,05/04/2017,429508,6378.50,,Potter Raper Partnership,POT006,Corporate Resources and S151,Balance Sheet,Other Land And Buildings-Hra,Consultancy,
http://statistics.data.gov.uk/search?search=E07000114,Thanet District Council,05/04/2017,429509,6500.00,,Potter Raper Partnership,POT006,Corporate Resources and S151,Balance Sheet,Other Land And Buildings-Hra,Consultancy,
http://statistics.data.gov.uk/search?search=E07000114,Thanet District Council,05/04/2017,429510,516.60,,Potter Raper Partnership,POT006,Corporate Resources and S151,Balance Sheet,Other Land And Buildings-Hra,Consultancy,
http://statistics.data.gov.uk/search?search=E07000114,Thanet District Council,05/04/2017,429290,876.00,,Profile Security Services Limited,PRO018,Operational Services,Revenue,Services,Facilities And Management Serv,
http://statistics.data.gov.uk/search?search=E07000114,Thanet District Council,05/04/2017,429222,550.00,,Puls Global Ltd,PUL006,Operational Services,Revenue,"Repairs,  Alter & Mtce - Build",Facilities And Management Serv,
http://statistics.data.gov.uk/search?search=E07000114,Thanet District Council,05/04/2017,429223,713.19,,Puls Global Ltd,PUL006,Operational Services,Revenue,"Repairs,  Alter & Mtce - Build",Facilities And Management Serv,
http://statistics.data.gov.uk/search?search=E07000114,Thanet District Council,05/04/2017,429281,490.00,,R Cannon,CAN007,Operational Services,Revenue,Services,Maritime Services,
http://statistics.data.gov.uk/search?search=E07000114,Thanet District Council,05/04/2017,429283,822.50,,R Cannon,CAN007,Operational Services,Revenue,Services,Maritime Services,
http://statistics.data.gov.uk/search?search=E07000114,Thanet District Council,05/04/2017,428761,2498.10,,Rand Associates Consultancy Ser Ltd,RAN006,Community Services,Revenue,Services,Construction-Repair And Maint,
http://statistics.data.gov.uk/search?search=E07000114,Thanet District Council,05/04/2017,428679,720.00,,Rigby Taylor Ltd,RIG002,Operational Services,Revenue,"Equip, Furniture And Materials",Horticultural,
http://statistics.data.gov.uk/search?search=E07000114,Thanet District Council,05/04/2017,429404,1035.00,,South West Councils,SOU032,Corporate Resources and S151,Revenue,Training,Human Resources,
http://statistics.data.gov.uk/search?search=E07000114,Thanet District Council,05/04/2017,428828,735.00,,Southeast Retail Ltd,SOU030,Community Services,Revenue,Services,Housing Management,
http://statistics.data.gov.uk/search?search=E07000114,Thanet District Council,05/04/2017,428685,524.50,,Stokes Bros,STO001,Operational Services,Revenue,"Repairs,  Alter & Mtce - Build",Building Construction Material,
http://statistics.data.gov.uk/search?search=E07000114,Thanet District Council,05/04/2017,429287,7225.20,,Targeted Response Direct Limited,TAR008,East Kent Shared Services,Revenue,Communications & Computing,Ict,
http://statistics.data.gov.uk/search?search=E07000114,Thanet District Council,05/04/2017,428884,1342.30,,Tfa Fuel Services Ltd,TFA003,Corporate Resources and S151,Balance Sheet,Rechargeable Works,Utilities,
http://statistics.data.gov.uk/search?search=E07000114,Thanet District Council,05/04/2017,428884,25.62,,Tfa Fuel Services Ltd,TFA003,Operational Services,Revenue,Direct Transport Costs,Utilities,
http://statistics.data.gov.uk/search?search=E07000114,Thanet District Council,05/04/2017,428884,93.33,,Tfa Fuel Services Ltd,TFA003,Operational Services,Revenue,"Equip, Furniture And Materials",Utilities,
http://statistics.data.gov.uk/search?search=E07000114,Thanet District Council,05/04/2017,428699,434.50,,Thanet Waste Services Ltd,TWA001,Operational Services,Revenue,Private Contractors,Environmental Services,
http://statistics.data.gov.uk/search?search=E07000114,Thanet District Council,05/04/2017,428714,3466.67,,The Glenwood Hotel,GLE007,Community Services,Revenue,Services,Housing Management,
http://statistics.data.gov.uk/search?search=E07000114,Thanet District Council,05/04/2017,428715,2595.84,,The Glenwood Hotel,GLE007,Community Services,Revenue,Services,Housing Management,
http://statistics.data.gov.uk/search?search=E07000114,Thanet District Council,05/04/2017,428716,3233.35,,The Glenwood Hotel,GLE007,Community Services,Revenue,Services,Housing Management,
http://statistics.data.gov.uk/search?search=E07000114,Thanet District Council,05/04/2017,428717,2579.16,,The Glenwood Hotel,GLE007,Community Services,Revenue,Services,Housing Management,
http://statistics.data.gov.uk/search?search=E07000114,Thanet District Council,05/04/2017,429346,248.00,,Total Merchandise Ltd,TOT012,Corporate Resources and S151,Revenue,Services,Stationery,
http://statistics.data.gov.uk/search?search=E07000114,Thanet District Council,05/04/2017,427847,642.77,,Viridor Waste Management Ltd,VIR003,Corporate Governance,Revenue,Private Contractors,Environmental Services,
http://statistics.data.gov.uk/search?search=E07000114,Thanet District Council,05/04/2017,429288,365.00,,Wallace Print Limited,WAL034,Corporate Resources and S151,Revenue,"Equip, Furniture And Materials",Facilities And Management Serv,
http://statistics.data.gov.uk/search?search=E07000114,Thanet District Council,05/04/2017,429295,380.00,,Weather2 Limited,WEA008,Operational Services,Revenue,Communications & Computing,Environmental Services,
http://statistics.data.gov.uk/search?search=E07000114,Thanet District Council,11/04/2017,428162,2700.00,,A2b Technology (Uk) Ltd,A2B001,Corporate Governance,Revenue,Communications & Computing,Ict,
http://statistics.data.gov.uk/search?search=E07000114,Thanet District Council,11/04/2017,428732,674.95,,Aebi Schmidt Uk Limited,AEB002,Operational Services,Revenue,Direct Transport Costs,Vehicle Management,
http://statistics.data.gov.uk/search?search=E07000114,Thanet District Council,11/04/2017,429575,433.00,,Antidote Dp Limited,ANT004,Community Services,Revenue,"Print, Stat And Gen Off Exps",Facilities And Management Serv,
http://statistics.data.gov.uk/search?search=E07000114,Thanet District Council,11/04/2017,429685,263.76,,Arco Limited,ARC001,Operational Services,Revenue,"Clothes, Uniforms & Laundry",Clothing,
http://statistics.data.gov.uk/search?search=E07000114,Thanet District Council,11/04/2017,429877,1270.00,,Ashdown Supplies,ASH009,Operational Services,Revenue,"Equip, Furniture And Materials",Cemetery And Crematorium,
http://statistics.data.gov.uk/search?search=E07000114,Thanet District Council,11/04/2017,428727,420.00,,Astra Uk (Contracts) Ltd,AST003,Operational Services,Revenue,Cleaning & Domestic Supplies,Environmental Services,
http://statistics.data.gov.uk/search?search=E07000114,Thanet District Council,11/04/2017,429468,897.00,,Belmont Press Limited,BEL005,Community Services,Revenue,"Print, Stat And Gen Off Exps",Facilities And Management Serv,
http://statistics.data.gov.uk/search?search=E07000114,Thanet District Council,11/04/2017,429665,15160.38,,Bidwells Llp,BID001,Corporate Resources and S151,Balance Sheet,Other Land And Buildings-Hra,Consultancy,
http://statistics.data.gov.uk/search?search=E07000114,Thanet District Council,11/04/2017,429450,52.00,,C & S News,CSN001,Chief Executive,Revenue,"Print, Stat And Gen Off Exps",Facilities And Management Serv,
http://statistics.data.gov.uk/search?search=E07000114,Thanet District Council,11/04/2017,429450,26.00,,C & S News,CSN001,Corporate Resources and S151,Revenue,"Print, Stat And Gen Off Exps",Facilities And Management Serv,
http://statistics.data.gov.uk/search?search=E07000114,Thanet District Council,11/04/2017,429450,156.00,,C & S News,CSN001,Community Services,Revenue,"Print, Stat And Gen Off Exps",Facilities And Management Serv,
http://statistics.data.gov.uk/search?search=E07000114,Thanet District Council,11/04/2017,429450,52.00,,C & S News,CSN001,Corporate Governance,Revenue,"Print, Stat And Gen Off Exps",Facilities And Management Serv,
http://statistics.data.gov.uk/search?search=E07000114,Thanet District Council,11/04/2017,429450,78.00,,C & S News,CSN001,Operational Services,Revenue,"Print, Stat And Gen Off Exps",Facilities And Management Serv,
http://statistics.data.gov.uk/search?search=E07000114,Thanet District Council,11/04/2017,429482,1500.00,,Canterbury Christ Church University,CAN006,Community Services,Revenue,Training,Various Categories,
http://statistics.data.gov.uk/search?search=E07000114,Thanet District Council,11/04/2017,429539,286.80,,Canterbury Christ Church University,CAN006,Community Services,Revenue,Rents,Various Categories,
http://statistics.data.gov.uk/search?search=E07000114,Thanet District Council,11/04/2017,429490,1904.00,,Canterbury City Council,CAN004,Operational Services,Revenue,Services,Various Cats - Public Sector,
http://statistics.data.gov.uk/search?search=E07000114,Thanet District Council,11/04/2017,429495,5000.00,,Canterbury City Council,CAN004,Chief Executive,Revenue,Services,Various Cats - Public Sector,
http://statistics.data.gov.uk/search?search=E07000114,Thanet District Council,11/04/2017,429621,37702.71,,Canterbury City Council,CAN004,East Kent Shared Services,Revenue,Grants & Subscriptions,Various Cats - Public Sector,
http://statistics.data.gov.uk/search?search=E07000114,Thanet District Council,11/04/2017,429622,25957.48,,Canterbury City Council,CAN004,East Kent Shared Services,Revenue,Grants & Subscriptions,Various Cats - Public Sector,
http://statistics.data.gov.uk/search?search=E07000114,Thanet District Council,11/04/2017,430010,1000.00,,Canterbury City Council,CAN004,Community Services,Revenue,Grants & Subscriptions,Various Cats - Public Sector,
http://statistics.data.gov.uk/search?search=E07000114,Thanet District Council,11/04/2017,429704,9650.00,,Capita Treasury Solutions Limited,CAP012,Corporate Resources and S151,Revenue,Services,Financial Services,
http://statistics.data.gov.uk/search?search=E07000114,Thanet District Council,11/04/2017,429318,1351.08,,Ccs Media Limited,CCS003,East Kent Shared Services,Revenue,Communications & Computing,Ict,
http://statistics.data.gov.uk/search?search=E07000114,Thanet District Council,11/04/2017,429711,413.57,,Ccs Media Limited,CCS003,East Kent Shared Services,Revenue,Communications & Computing,Ict,
http://statistics.data.gov.uk/search?search=E07000114,Thanet District Council,11/04/2017,429172,5844.99,,Cfh Docmail Ltd,CFH001,East Kent Shared Services,Revenue,"Print, Stat And Gen Off Exps",Facilities And Management Serv,
http://statistics.data.gov.uk/search?search=E07000114,Thanet District Council,11/04/2017,429173,7582.08,,Cfh Docmail Ltd,CFH001,East Kent Shared Services,Revenue,"Print, Stat And Gen Off Exps",Facilities And Management Serv,
http://statistics.data.gov.uk/search?search=E07000114,Thanet District Council,11/04/2017,429174,6564.88,,Cfh Docmail Ltd,CFH001,East Kent Shared Services,Revenue,"Print, Stat And Gen Off Exps",Facilities And Management Serv,
http://statistics.data.gov.uk/search?search=E07000114,Thanet District Council,11/04/2017,429830,4270.00,,Cipfa Business Ltd,CIP008,Corporate Resources and S151,Revenue,Grants & Subscriptions,Financial Services,
http://statistics.data.gov.uk/search?search=E07000114,Thanet District Council,11/04/2017,428917,12000.00,,Civica Uk Ltd,CIV003,East Kent Shared Services,Revenue,Communications & Computing,Ict,
http://statistics.data.gov.uk/search?search=E07000114,Thanet District Council,11/04/2017,429253,980.00,,Connaught Hotel Dover Limited,CON046,Community Services,Revenue,Services,Housing Management,
http://statistics.data.gov.uk/search?search=E07000114,Thanet District Council,11/04/2017,429254,420.00,,Connaught Hotel Dover Limited,CON046,Community Services,Revenue,Services,Housing Management,
http://statistics.data.gov.uk/search?search=E07000114,Thanet District Council,11/04/2017,429255,420.00,,Connaught Hotel Dover Limited,CON046,Community Services,Revenue,Services,Housing Management,
http://statistics.data.gov.uk/search?search=E07000114,Thanet District Council,11/04/2017,429256,980.00,,Connaught Hotel Dover Limited,CON046,Community Services,Revenue,Services,Housing Management,
http://statistics.data.gov.uk/search?search=E07000114,Thanet District Council,11/04/2017,429284,980.00,,Connaught Hotel Dover Limited,CON046,Community Services,Revenue,Services,Housing Management,
http://statistics.data.gov.uk/search?search=E07000114,Thanet District Council,11/04/2017,429285,420.00,,Connaught Hotel Dover Limited,CON046,Community Services,Revenue,Services,Housing Management,
http://statistics.data.gov.uk/search?search=E07000114,Thanet District Council,11/04/2017,428516,99217.24,,Coombs (Canterbury) Ltd,COO033,Corporate Resources and S151,Balance Sheet,Other Land And Buildings-Hra,Construction-Repair And Maint,
http://statistics.data.gov.uk/search?search=E07000114,Thanet District Council,11/04/2017,429228,379177.50,,Coombs (Canterbury) Ltd,COO033,Corporate Resources and S151,Balance Sheet,Other Land And Buildings-Hra,Construction-Repair And Maint,
http://statistics.data.gov.uk/search?search=E07000114,Thanet District Council,11/04/2017,429215,3756.12,,Dcb (Kent) Ltd,DCB001,Operational Services,Revenue,"Repairs,  Alter & Mtce - Build",Construction-Repair And Maint,
http://statistics.data.gov.uk/search?search=E07000114,Thanet District Council,11/04/2017,429853,616.00,,Disclosure And Barring Service,DIS017,Community Services,Revenue,"Equip, Furniture And Materials",Human Resources,
http://statistics.data.gov.uk/search?search=E07000114,Thanet District Council,11/04/2017,429971,500.00,,Dolphin Lifts Kent,DOL003,Corporate Resources and S151,Balance Sheet,Capital Exp-Non Council Assets,Grants,
http://statistics.data.gov.uk/search?search=E07000114,Thanet District Council,11/04/2017,429138,3134.76,,Dover District Council,DOV001,Corporate Resources and S151,Revenue,Employee Related Schemes,Various Cats - Public Sector,
http://statistics.data.gov.uk/search?search=E07000114,Thanet District Council,11/04/2017,429139,586.37,,Dover District Council,DOV001,East Kent Shared Services,Revenue,Employee Related Schemes,Various Cats - Public Sector,
http://statistics.data.gov.uk/search?search=E07000114,Thanet District Council,11/04/2017,429148,1866.67,,Dover District Council,DOV001,Corporate Governance,Revenue,Services,Various Cats - Public Sector,
http://statistics.data.gov.uk/search?search=E07000114,Thanet District Council,11/04/2017,429576,272.00,,Dover District Council,DOV001,Corporate Resources and S151,Revenue,Services,Various Cats - Public Sector,
http://statistics.data.gov.uk/search?search=E07000114,Thanet District Council,11/04/2017,429580,23887.07,,Dover District Council,DOV001,East Kent Shared Services,Revenue,Grants & Subscriptions,Various Cats - Public Sector,
http://statistics.data.gov.uk/search?search=E07000114,Thanet District Council,11/04/2017,429514,15082.87,,Downfast Demolition & Salvage Ltd,DOW001,Corporate Resources and S151,Balance Sheet,Council Dwellings,Building Construction Material,
http://statistics.data.gov.uk/search?search=E07000114,Thanet District Council,11/04/2017,429692,6690.40,,Drury Mcpherson Partnership,DRU003,Corporate Resources and S151,Balance Sheet,Other Land And Buildings-Hra,Legal Services,
http://statistics.data.gov.uk/search?search=E07000114,Thanet District Council,11/04/2017,428994,1461.78,,E Saunders Margate Ltd,SAU001,Corporate Governance,Revenue,"Repairs,  Alter & Mtce - Build",Construction-Repair And Maint,
http://statistics.data.gov.uk/search?search=E07000114,Thanet District Council,11/04/2017,429280,206.72,,E Saunders Margate Ltd,SAU001,Community Services,Revenue,"Repairs,  Alter & Mtce - Build",Construction-Repair And Maint,
http://statistics.data.gov.uk/search?search=E07000114,Thanet District Council,11/04/2017,429280,398.42,,E Saunders Margate Ltd,SAU001,Corporate Governance,Revenue,"Repairs,  Alter & Mtce - Build",Construction-Repair And Maint,
http://statistics.data.gov.uk/search?search=E07000114,Thanet District Council,11/04/2017,429280,36.10,,E Saunders Margate Ltd,SAU001,Operational Services,Revenue,"Repairs,  Alter & Mtce - Build",Construction-Repair And Maint,
http://statistics.data.gov.uk/search?search=E07000114,Thanet District Council,11/04/2017,428975,225.39,,E.On,EON001,Community Services,Revenue,Energy Costs,Utilities,
http://statistics.data.gov.uk/search?search=E07000114,Thanet District Council,11/04/2017,429623,253.38,,E.On,EON001,Community Services,Revenue,Energy Costs,Utilities,
http://statistics.data.gov.uk/search?search=E07000114,Thanet District Council,11/04/2017,429706,379.17,,East Kent College,EAS018,Community Services,Revenue,Training,Education,
http://statistics.data.gov.uk/search?search=E07000114,Thanet District Council,11/04/2017,429694,21700.00,,East Kent Housing Ltd,EKH002,Community Services,Revenue,Other Agencies,Housing Management,
http://statistics.data.gov.uk/search?search=E07000114,Thanet District Council,11/04/2017,429396,947.80,,Egbert H Taylor & Company Ltd,TAY005,Operational Services,Revenue,"Equip, Furniture And Materials",Environmental Services,
http://statistics.data.gov.uk/search?search=E07000114,Thanet District Council,11/04/2017,429543,1018.70,,Elec-Sec Ltd,ELE014,Corporate Governance,Revenue,"Repairs,  Alter & Mtce - Build",Building Construction Material,
http://statistics.data.gov.uk/search?search=E07000114,Thanet District Council,11/04/2017,429136,253.33,,Electrical Lighting Solutions Ltd,ELE013,Operational Services,Revenue,"Repairs,  Alter & Mtce - Build",Building Construction Material,
http://statistics.data.gov.uk/search?search=E07000114,Thanet District Council,11/04/2017,429328,301.77,,Electrical Lighting Solutions Ltd,ELE013,Operational Services,Revenue,"Repairs,  Alter & Mtce - Build",Building Construction Material,
http://statistics.data.gov.uk/search?search=E07000114,Thanet District Council,11/04/2017,429331,667.50,,Electrical Lighting Solutions Ltd,ELE013,Operational Services,Revenue,"Repairs,  Alter & Mtce - Build",Building Construction Material,
http://statistics.data.gov.uk/search?search=E07000114,Thanet District Council,11/04/2017,429163,5352.00,,Enviro Technology Services Plc,ENV004,Community Services,Revenue,Services,Environmental Services,
http://statistics.data.gov.uk/search?search=E07000114,Thanet District Council,11/04/2017,429701,1100.00,,Environmental Building Solns Ltd,ENV018,Operational Services,Revenue,"Repairs,  Alter & Mtce - Build",Sports Playground Equipment,
http://statistics.data.gov.uk/search?search=E07000114,Thanet District Council,11/04/2017,427348,2775.00,,Faithorn Farrell Timms Llp,FAI007,Corporate Resources and S151,Balance Sheet,Council Dwellings,Consultancy,
http://statistics.data.gov.uk/search?search=E07000114,Thanet District Council,11/04/2017,429844,982.00,,Freight Transport Association,FRE007,Operational Services,Revenue,Grants & Subscriptions,Human Resources,
http://statistics.data.gov.uk/search?search=E07000114,Thanet District Council,11/04/2017,429401,404.63,,G & G Forklifts,GGF001,Operational Services,Revenue,"Equip, Furniture And Materials",Vehicle Management,
http://statistics.data.gov.uk/search?search=E07000114,Thanet District Council,11/04/2017,428045,6391.89,,G & W Gardner Building Cont Ltd,GAR001,Corporate Resources and S151,Balance Sheet,Other Land And Buildings-Hra,Construction-Repair And Maint,
http://statistics.data.gov.uk/search?search=E07000114,Thanet District Council,11/04/2017,429392,8345.00,,Glory Global Solutions (Int) Limited,GLO014,Operational Services,Revenue,"Equip, Furniture And Materials",Financial Services,
http://statistics.data.gov.uk/search?search=E07000114,Thanet District Council,11/04/2017,429178,355.00,,Great West Autos Ltd,GRE008,Operational Services,Revenue,"Repairs,  Alter & Mtce - Build",Vehicle Management,
http://statistics.data.gov.uk/search?search=E07000114,Thanet District Council,11/04/2017,429850,29452.74,,Hipperson Builders (M & E) Limited,HIP002,Corporate Resources and S151,Balance Sheet,Council Dwellings,Construction-Repair And Maint,
http://statistics.data.gov.uk/search?search=E07000114,Thanet District Council,11/04/2017,429484,1007.50,,Holbrook Revell Electrical Ltd,HOL015,Operational Services,Revenue,"Repairs,  Alter & Mtce - Build",Building Construction Material,
http://statistics.data.gov.uk/search?search=E07000114,Thanet District Council,11/04/2017,429496,4564.40,,Hydraquip Hose & Hydraulics,HYD003,Operational Services,Revenue,"Repairs,  Alter & Mtce - Build",Vehicle Management,
http://statistics.data.gov.uk/search?search=E07000114,Thanet District Council,11/04/2017,429397,286.45,,Ideas Unlimited,IDE001,Community Services,Revenue,"Clothes, Uniforms & Laundry",Clothing,
http://statistics.data.gov.uk/search?search=E07000114,Thanet District Council,11/04/2017,429145,360.00,,Idox Software  Limited,IDO001,Community Services,Revenue,Communications & Computing,Ict,
http://statistics.data.gov.uk/search?search=E07000114,Thanet District Council,11/04/2017,429590,262.50,,Jne Security Ltd,JNE002,Community Services,Revenue,Services,Facilities And Management Serv,
http://statistics.data.gov.uk/search?search=E07000114,Thanet District Council,11/04/2017,429969,671.90,,John Gale,GAL001,Corporate Resources and S151,Balance Sheet,Capital Exp-Non Council Assets,Grants,
http://statistics.data.gov.uk/search?search=E07000114,Thanet District Council,11/04/2017,429647,600.00,,John Reeve (Plant Hire) Ltd,REE013,Community Services,Revenue,Services,Vehicle Management,
http://statistics.data.gov.uk/search?search=E07000114,Thanet District Council,11/04/2017,429515,1000.00,,Kent & Medway Charity Team,KMC003,Community Services,Revenue,Grants & Subscriptions,Arts And Leisure Services,
http://statistics.data.gov.uk/search?search=E07000114,Thanet District Council,11/04/2017,428923,565.41,,Kent County Council,KCC002,Operational Services,Revenue,"Repairs,  Alter & Mtce - Build",Various Cats - Public Sector,
http://statistics.data.gov.uk/search?search=E07000114,Thanet District Council,11/04/2017,428934,27710.84,,Kent County Council,KCC002,Corporate Resources and S151,Revenue,Communications & Computing,Various Cats - Public Sector,
http://statistics.data.gov.uk/search?search=E07000114,Thanet District Council,11/04/2017,428934,11505.57,,Kent County Council,KCC002,East Kent Shared Services,Revenue,Communications & Computing,Various Cats - Public Sector,
http://statistics.data.gov.uk/search?search=E07000114,Thanet District Council,11/04/2017,429158,1678.20,,Kent County Council,KCC002,Operational Services,Revenue,"Repairs,  Alter & Mtce - Build",Various Cats - Public Sector,
http://statistics.data.gov.uk/search?search=E07000114,Thanet District Council,11/04/2017,429497,566.80,,Kent County Council,KCC002,Community Services,Revenue,Grants & Subscriptions,Various Cats - Public Sector,
http://statistics.data.gov.uk/search?search=E07000114,Thanet District Council,11/04/2017,429964,63560.00,,Kent Police & Crime Commissioner,KPC002,Community Services,Revenue,Grants & Subscriptions,Facilities And Management Serv,
http://statistics.data.gov.uk/search?search=E07000114,Thanet District Council,11/04/2017,429298,3000.00,,Kent Wildlife Trust,KEN007,Operational Services,Revenue,Grants & Subscriptions,Various Categories,
http://statistics.data.gov.uk/search?search=E07000114,Thanet District Council,11/04/2017,429676,400.00,,Km Media Group Limited,KMM001,Community Services,Revenue,Miscellaneous Expenses,Facilities And Management Serv,
http://statistics.data.gov.uk/search?search=E07000114,Thanet District Council,11/04/2017,429400,1852.39,,L W Burt & Son Ltd,BUR027,Corporate Governance,Revenue,"Repairs,  Alter & Mtce - Build",Construction-Repair And Maint,
http://statistics.data.gov.uk/search?search=E07000114,Thanet District Council,11/04/2017,428683,425.00,,Larac,LAR001,Operational Services,Revenue,"Print, Stat And Gen Off Exps",Financial Services,
http://statistics.data.gov.uk/search?search=E07000114,Thanet District Council,11/04/2017,428737,87.14,,Lyreco Uk Limited,LYR001,Community Services,Revenue,"Equip, Furniture And Materials",Stationery,
http://statistics.data.gov.uk/search?search=E07000114,Thanet District Council,11/04/2017,428737,22.50,,Lyreco Uk Limited,LYR001,Community Services,Revenue,"Print, Stat And Gen Off Exps",Stationery,
http://statistics.data.gov.uk/search?search=E07000114,Thanet District Council,11/04/2017,428737,117.40,,Lyreco Uk Limited,LYR001,Operational Services,Revenue,"Equip, Furniture And Materials",Stationery,
http://statistics.data.gov.uk/search?search=E07000114,Thanet District Council,11/04/2017,428737,115.92,,Lyreco Uk Limited,LYR001,Operational Services,Revenue,"Print, Stat And Gen Off Exps",Stationery,
http://statistics.data.gov.uk/search?search=E07000114,Thanet District Council,11/04/2017,428737,435.70,,Lyreco Uk Limited,LYR001,East Kent Shared Services,Revenue,"Equip, Furniture And Materials",Stationery,
http://statistics.data.gov.uk/search?search=E07000114,Thanet District Council,11/04/2017,429230,411.84,,Lyreco Uk Limited,LYR001,Operational Services,Revenue,"Print, Stat And Gen Off Exps",Stationery,
http://statistics.data.gov.uk/search?search=E07000114,Thanet District Council,11/04/2017,426258,312.00,,Maha Uk Ltd,MAH002,Operational Services,Revenue,"Equip, Furniture And Materials",Ict,
http://statistics.data.gov.uk/search?search=E07000114,Thanet District Council,11/04/2017,429268,7625.89,,Midland Software Limited,MID013,East Kent Shared Services,Revenue,Communications & Computing,Ict,
http://statistics.data.gov.uk/search?search=E07000114,Thanet District Council,11/04/2017,429269,1525.13,,Midland Software Limited,MID013,East Kent Shared Services,Revenue,Communications & Computing,Ict,
http://statistics.data.gov.uk/search?search=E07000114,Thanet District Council,11/04/2017,429294,2000.00,,Modern Mindset Ltd,MOD004,Corporate Governance,Revenue,Communications & Computing,Ict,
http://statistics.data.gov.uk/search?search=E07000114,Thanet District Council,11/04/2017,429483,600.00,,Modus Film Productions Limited,MOD005,Community Services,Revenue,Services,Facilities And Management Serv,
http://statistics.data.gov.uk/search?search=E07000114,Thanet District Council,11/04/2017,429804,69.15,,Mr Darren Osborne,OSB008,Community Services,Revenue,Cleaning & Domestic Supplies,Cleaning And Janitorial,
http://statistics.data.gov.uk/search?search=E07000114,Thanet District Council,11/04/2017,429804,451.68,,Mr Darren Osborne,OSB008,Corporate Governance,Revenue,Cleaning & Domestic Supplies,Cleaning And Janitorial,
http://statistics.data.gov.uk/search?search=E07000114,Thanet District Council,11/04/2017,429804,40.00,,Mr Darren Osborne,OSB008,Operational Services,Revenue,Cleaning & Domestic Supplies,Cleaning And Janitorial,
http://statistics.data.gov.uk/search?search=E07000114,Thanet District Council,11/04/2017,429654,2664.95,,National Express Ltd,NAT010,Community Services,Revenue,Services,Agency Payments,
http://statistics.data.gov.uk/search?search=E07000114,Thanet District Council,11/04/2017,429324,253.38,,Ncc Mechanical Services Limited,NCC006,Corporate Governance,Revenue,"Repairs,  Alter & Mtce - Build",Construction-Repair And Maint,
http://statistics.data.gov.uk/search?search=E07000114,Thanet District Council,11/04/2017,429967,6719.00,,Northwood Builders,NOR002,Corporate Resources and S151,Balance Sheet,Capital Exp-Non Council Assets,Grants,
http://statistics.data.gov.uk/search?search=E07000114,Thanet District Council,11/04/2017,429315,385.80,,Ocs Group Uk Ltd T/A Cannon,OCS003,Operational Services,Revenue,"Equip, Furniture And Materials",Cleaning And Janitorial,
http://statistics.data.gov.uk/search?search=E07000114,Thanet District Council,11/04/2017,429691,379.00,,Office Reality Limited,OFF009,Corporate Governance,Revenue,Fixtures & Fittings,Furniture And Soft Furnishings,
http://statistics.data.gov.uk/search?search=E07000114,Thanet District Council,11/04/2017,429166,1901.76,,Oracle Corporation Uk Ltd,ORA001,East Kent Shared Services,Revenue,Communications & Computing,Ict,
http://statistics.data.gov.uk/search?search=E07000114,Thanet District Council,11/04/2017,429651,585.00,,Ovenden Tipper Services Ltd,OVE001,Operational Services,Revenue,"Repairs,  Alter & Mtce - Build",Vehicle Management,
http://statistics.data.gov.uk/search?search=E07000114,Thanet District Council,11/04/2017,429520,19250.00,,Padstow Harbour Commissioners,PAD003,Operational Services,Revenue,"Repairs,  Alter & Mtce - Build",Maritime Services,
http://statistics.data.gov.uk/search?search=E07000114,Thanet District Council,11/04/2017,429259,1546.20,,Phonophobia Limited,PHO014,Community Services,Revenue,Services,Arts And Leisure Services,
http://statistics.data.gov.uk/search?search=E07000114,Thanet District Council,11/04/2017,429451,210.00,,Pier Rigging And Testing Limited,PIE008,Operational Services,Revenue,"Repairs,  Alter & Mtce - Build",Maritime Services,
http://statistics.data.gov.uk/search?search=E07000114,Thanet District Council,11/04/2017,429659,850.00,,Rose Grogan,GRO024,Operational Services,Revenue,Services,Legal Services,
http://statistics.data.gov.uk/search?search=E07000114,Thanet District Council,11/04/2017,428212,787.00,,Royal Mail,ROY004,Corporate Governance,Revenue,Communications & Computing,Mail Services,
http://statistics.data.gov.uk/search?search=E07000114,Thanet District Council,11/04/2017,429177,283.04,,Royal Mail,ROY004,Corporate Governance,Revenue,Communications & Computing,Mail Services,
http://statistics.data.gov.uk/search?search=E07000114,Thanet District Council,11/04/2017,429480,3275.00,,Sancus Solutions Limited,SAN032,Community Services,Revenue,Expenses,Human Resources,
http://statistics.data.gov.uk/search?search=E07000114,Thanet District Council,11/04/2017,429534,408.32,,Sands Heritage Ltd (In Admin),SAN030,Community Services,Revenue,Services,Various Categories,
http://statistics.data.gov.uk/search?search=E07000114,Thanet District Council,11/04/2017,429517,60.00,,Scarborough Borough Council,SCA002,Corporate Governance,Revenue,Communications & Computing,Stationery,
http://statistics.data.gov.uk/search?search=E07000114,Thanet District Council,11/04/2017,429517,1600.00,,Scarborough Borough Council,SCA002,Corporate Governance,Revenue,"Print, Stat And Gen Off Exps",Stationery,
http://statistics.data.gov.uk/search?search=E07000114,Thanet District Council,11/04/2017,429648,870.00,,Secure Living Limited,SEC018,Operational Services,Revenue,Miscellaneous Expenses,Maritime Services,
http://statistics.data.gov.uk/search?search=E07000114,Thanet District Council,11/04/2017,429494,449.00,,Sideways Media Limited,SID002,Community Services,Revenue,Miscellaneous Expenses,Facilities And Management Serv,
http://statistics.data.gov.uk/search?search=E07000114,Thanet District Council,11/04/2017,428013,856.79,,Southern Electric,SEL007,Community Services,Revenue,Energy Costs,Utilities,
http://statistics.data.gov.uk/search?search=E07000114,Thanet District Council,11/04/2017,428014,974.06,,Southern Electric,SEL007,Corporate Governance,Revenue,Energy Costs,Utilities,
http://statistics.data.gov.uk/search?search=E07000114,Thanet District Council,11/04/2017,428545,2849.42,,Southern Electric,SEL007,Operational Services,Revenue,Energy Costs,Utilities,
http://statistics.data.gov.uk/search?search=E07000114,Thanet District Council,11/04/2017,429180,-2849.42,,Southern Electric,SEL007,Operational Services,Revenue,Energy Costs,Utilities,
http://statistics.data.gov.uk/search?search=E07000114,Thanet District Council,11/04/2017,429181,1448.40,,Southern Electric,SEL007,Operational Services,Revenue,Energy Costs,Utilities,
http://statistics.data.gov.uk/search?search=E07000114,Thanet District Council,11/04/2017,429427,555.38,,Southern Electric,SEL007,Corporate Governance,Revenue,Energy Costs,Utilities,
http://statistics.data.gov.uk/search?search=E07000114,Thanet District Council,11/04/2017,429428,409.10,,Southern Electric,SEL007,Corporate Governance,Revenue,Energy Costs,Utilities,
http://statistics.data.gov.uk/search?search=E07000114,Thanet District Council,11/04/2017,429433,420.91,,Southern Electric,SEL007,Community Services,Revenue,Energy Costs,Utilities,
http://statistics.data.gov.uk/search?search=E07000114,Thanet District Council,11/04/2017,429442,-974.06,,Southern Electric,SEL007,Corporate Governance,Revenue,Energy Costs,Utilities,
http://statistics.data.gov.uk/search?search=E07000114,Thanet District Council,11/04/2017,429443,-856.79,,Southern Electric,SEL007,Community Services,Revenue,Energy Costs,Utilities,
http://statistics.data.gov.uk/search?search=E07000114,Thanet District Council,11/04/2017,426698,536.04,,Southern Water,SWA001,Operational Services,Revenue,Water Services,Utilities,
http://statistics.data.gov.uk/search?search=E07000114,Thanet District Council,11/04/2017,426700,3487.33,,Southern Water,SWA001,Operational Services,Revenue,Water Services,Utilities,
http://statistics.data.gov.uk/search?search=E07000114,Thanet District Council,11/04/2017,426720,458.95,,Southern Water,SWA001,Operational Services,Revenue,Water Services,Utilities,
http://statistics.data.gov.uk/search?search=E07000114,Thanet District Council,11/04/2017,426781,474.61,,Southern Water,SWA001,Operational Services,Revenue,Water Services,Utilities,
http://statistics.data.gov.uk/search?search=E07000114,Thanet District Council,11/04/2017,426785,753.53,,Southern Water,SWA001,Operational Services,Revenue,Water Services,Utilities,
http://statistics.data.gov.uk/search?search=E07000114,Thanet District Council,11/04/2017,426786,393.14,,Southern Water,SWA001,Operational Services,Revenue,Water Services,Utilities,
http://statistics.data.gov.uk/search?search=E07000114,Thanet District Council,11/04/2017,426907,1278.52,,Southern Water,SWA001,Operational Services,Revenue,Water Services,Utilities,
http://statistics.data.gov.uk/search?search=E07000114,Thanet District Council,11/04/2017,427472,310.07,,Southern Water,SWA001,Operational Services,Revenue,Water Services,Utilities,
http://statistics.data.gov.uk/search?search=E07000114,Thanet District Council,11/04/2017,427928,3917.74,,Southern Water,SWA001,Operational Services,Revenue,Water Services,Utilities,
http://statistics.data.gov.uk/search?search=E07000114,Thanet District Council,11/04/2017,427945,305.72,,Southern Water,SWA001,Operational Services,Revenue,Water Services,Utilities,
http://statistics.data.gov.uk/search?search=E07000114,Thanet District Council,11/04/2017,429350,-458.95,,Southern Water,SWA001,Operational Services,Revenue,Water Services,Utilities,
http://statistics.data.gov.uk/search?search=E07000114,Thanet District Council,11/04/2017,429358,-393.14,,Southern Water,SWA001,Operational Services,Revenue,Water Services,Utilities,
http://statistics.data.gov.uk/search?search=E07000114,Thanet District Council,11/04/2017,429363,-305.72,,Southern Water,SWA001,Operational Services,Revenue,Water Services,Utilities,
http://statistics.data.gov.uk/search?search=E07000114,Thanet District Council,11/04/2017,429365,-753.53,,Southern Water,SWA001,Operational Services,Revenue,Water Services,Utilities,
http://statistics.data.gov.uk/search?search=E07000114,Thanet District Council,11/04/2017,429369,-1278.52,,Southern Water,SWA001,Operational Services,Revenue,Water Services,Utilities,
http://statistics.data.gov.uk/search?search=E07000114,Thanet District Council,11/04/2017,429371,-474.61,,Southern Water,SWA001,Operational Services,Revenue,Water Services,Utilities,
http://statistics.data.gov.uk/search?search=E07000114,Thanet District Council,11/04/2017,429375,-3917.74,,Southern Water,SWA001,Operational Services,Revenue,Water Services,Utilities,
http://statistics.data.gov.uk/search?search=E07000114,Thanet District Council,11/04/2017,429380,-536.04,,Southern Water,SWA001,Operational Services,Revenue,Water Services,Utilities,
http://statistics.data.gov.uk/search?search=E07000114,Thanet District Council,11/04/2017,429382,-310.07,,Southern Water,SWA001,Operational Services,Revenue,Water Services,Utilities,
http://statistics.data.gov.uk/search?search=E07000114,Thanet District Council,11/04/2017,429383,-3487.33,,Southern Water,SWA001,Operational Services,Revenue,Water Services,Utilities,
http://statistics.data.gov.uk/search?search=E07000114,Thanet District Council,11/04/2017,429384,-427.82,,Southern Water,SWA001,Operational Services,Revenue,Water Services,Utilities,
http://statistics.data.gov.uk/search?search=E07000114,Thanet District Council,11/04/2017,429405,2782.92,,Southern Water,SWA001,Operational Services,Revenue,Water Services,Utilities,
http://statistics.data.gov.uk/search?search=E07000114,Thanet District Council,11/04/2017,429408,335.56,,Southern Water,SWA001,Operational Services,Revenue,Water Services,Utilities,
http://statistics.data.gov.uk/search?search=E07000114,Thanet District Council,11/04/2017,429413,482.06,,Southern Water,SWA001,Operational Services,Revenue,Water Services,Utilities,
http://statistics.data.gov.uk/search?search=E07000114,Thanet District Council,11/04/2017,429416,325.74,,Southern Water,SWA001,Operational Services,Revenue,Water Services,Utilities,
http://statistics.data.gov.uk/search?search=E07000114,Thanet District Council,11/04/2017,429418,3240.42,,Southern Water,SWA001,Operational Services,Revenue,Water Services,Utilities,
http://statistics.data.gov.uk/search?search=E07000114,Thanet District Council,11/04/2017,429421,285.44,,Southern Water,SWA001,Operational Services,Revenue,Water Services,Utilities,
http://statistics.data.gov.uk/search?search=E07000114,Thanet District Council,11/04/2017,429424,2446.31,,Southern Water,SWA001,Operational Services,Revenue,Water Services,Utilities,
http://statistics.data.gov.uk/search?search=E07000114,Thanet District Council,11/04/2017,429460,1111.60,,Southern Water,SWA001,Operational Services,Revenue,Water Services,Utilities,
http://statistics.data.gov.uk/search?search=E07000114,Thanet District Council,11/04/2017,429787,752.93,,Southern Water,SWA001,Operational Services,Revenue,Water Services,Utilities,
http://statistics.data.gov.uk/search?search=E07000114,Thanet District Council,11/04/2017,429645,650.00,,Stagecoach Services Limited,STA023,Corporate Resources and S151,Balance Sheet,Staff Bus Permits Holding A/C,Public Transport,
http://statistics.data.gov.uk/search?search=E07000114,Thanet District Council,11/04/2017,429660,5965.50,,T Nielsen & Company Ltd,NIE001,Corporate Governance,Revenue,"Repairs,  Alter & Mtce - Build",Construction-Repair And Maint,
http://statistics.data.gov.uk/search?search=E07000114,Thanet District Council,11/04/2017,428344,298.50,,Tecalemit Garage Equipment Co Ltd,TEC010,Operational Services,Revenue,Direct Transport Costs,Vehicle Management,
http://statistics.data.gov.uk/search?search=E07000114,Thanet District Council,11/04/2017,429491,512.50,,The Dean & Chapter Of Canterbury,DEA007,East Kent Shared Services,Revenue,Expenses,Facilities And Management Serv,
http://statistics.data.gov.uk/search?search=E07000114,Thanet District Council,11/04/2017,429826,4150.00,,The Duncan & Graham Partnership Ltd,DUN015,Corporate Resources and S151,Balance Sheet,Council Dwellings,Consultancy,
http://statistics.data.gov.uk/search?search=E07000114,Thanet District Council,11/04/2017,429808,1000.00,,The Health & Housing Partnshp Llp,HEA021,Community Services,Revenue,Services,Consultancy,
http://statistics.data.gov.uk/search?search=E07000114,Thanet District Council,11/04/2017,428968,400.00,,The Preventative Healthcare Co Ltd,PRE038,East Kent Shared Services,Revenue,Employee Related Schemes,Human Resources,
http://statistics.data.gov.uk/search?search=E07000114,Thanet District Council,11/04/2017,429398,500.00,,The Ramsgate Society,RAM003,Community Services,Revenue,Rents,Grants,
http://statistics.data.gov.uk/search?search=E07000114,Thanet District Council,11/04/2017,429201,374.00,,Thomson Reuters,THO043,Corporate Governance,Revenue,"Print, Stat And Gen Off Exps",Human Resources,
http://statistics.data.gov.uk/search?search=E07000114,Thanet District Council,11/04/2017,429789,595.00,,Total Merchandise Ltd,TOT012,Community Services,Revenue,Services,Stationery,
http://statistics.data.gov.uk/search?search=E07000114,Thanet District Council,11/04/2017,429519,1033.33,,Town Legal Llp,TOW015,Corporate Resources and S151,Balance Sheet,Other Land And Buildings-Hra,Legal Services,
http://statistics.data.gov.uk/search?search=E07000114,Thanet District Council,11/04/2017,429322,279.00,,Trafalgar Cleaning Equipment Ltd,TRA033,Operational Services,Revenue,Direct Transport Costs,Cleaning And Janitorial,
http://statistics.data.gov.uk/search?search=E07000114,Thanet District Council,11/04/2017,429663,1800.00,,University Of Southampton,UNI040,Operational Services,Revenue,Employee Related Schemes,Human Resources,
http://statistics.data.gov.uk/search?search=E07000114,Thanet District Council,11/04/2017,429657,474.00,,Wallace Print Limited,WAL034,Corporate Resources and S151,Revenue,"Equip, Furniture And Materials",Facilities And Management Serv,
http://statistics.data.gov.uk/search?search=E07000114,Thanet District Council,11/04/2017,429394,225.00,,Wilkin Chapman Llp,WIL057,East Kent Shared Services,Revenue,Training,Legal Services,
http://statistics.data.gov.uk/search?search=E07000114,Thanet District Council,11/04/2017,429186,13412.56,,Xpress Software Solutions Ltd,XPR002,Corporate Governance,Revenue,Communications & Computing,Ict,
http://statistics.data.gov.uk/search?search=E07000114,Thanet District Council,13/04/2017,429938,4488.91,,Level 3 Communications (Uk) Ltd,LEV005,Corporate Resources and S151,Balance Sheet,Telephone Holding Account,Ict,
http://statistics.data.gov.uk/search?search=E07000114,Thanet District Council,13/04/2017,430193,1000.00,,REDACTED PERSONAL DATA,N/A,East Kent Shared Services,Revenue,Miscellaneous Expenses,Non Trade Payee,
http://statistics.data.gov.uk/search?search=E07000114,Thanet District Council,13/04/2017,429779,-2849.42,,Southern Electric,SEL007,Corporate Governance,Revenue,Energy Costs,Utilities,
http://statistics.data.gov.uk/search?search=E07000114,Thanet District Council,13/04/2017,429784,1943.13,,Southern Electric,SEL007,Corporate Governance,Revenue,Energy Costs,Utilities,
http://statistics.data.gov.uk/search?search=E07000114,Thanet District Council,13/04/2017,429924,225.25,,Southern Electric,SEL007,Operational Services,Revenue,Energy Costs,Utilities,
http://statistics.data.gov.uk/search?search=E07000114,Thanet District Council,13/04/2017,429929,321.53,,Southern Electric,SEL007,Operational Services,Revenue,Energy Costs,Utilities,
http://statistics.data.gov.uk/search?search=E07000114,Thanet District Council,13/04/2017,429930,263.49,,Southern Electric,SEL007,Operational Services,Revenue,Energy Costs,Utilities,
http://statistics.data.gov.uk/search?search=E07000114,Thanet District Council,13/04/2017,429936,5.39,,Southern Electric,SEL007,Community Services,Revenue,Energy Costs,Utilities,
http://statistics.data.gov.uk/search?search=E07000114,Thanet District Council,13/04/2017,429936,575.52,,Southern Electric,SEL007,Operational Services,Revenue,Energy Costs,Utilities,
http://statistics.data.gov.uk/search?search=E07000114,Thanet District Council,19/04/2017,430373,2330.37,,10 Dalby Square (Management) Ltd,10D001,Corporate Resources and S151,Balance Sheet,Capital Exp-Non Council Assets,Grants,
http://statistics.data.gov.uk/search?search=E07000114,Thanet District Council,19/04/2017,430374,2330.37,,10 Dalby Square (Management) Ltd,10D001,Corporate Resources and S151,Balance Sheet,Capital Exp-Non Council Assets,Grants,
http://statistics.data.gov.uk/search?search=E07000114,Thanet District Council,19/04/2017,430375,1802.52,,10 Dalby Square (Management) Ltd,10D001,Corporate Resources and S151,Balance Sheet,Capital Exp-Non Council Assets,Grants,
http://statistics.data.gov.uk/search?search=E07000114,Thanet District Council,19/04/2017,430376,2330.37,,10 Dalby Square (Management) Ltd,10D001,Corporate Resources and S151,Balance Sheet,Capital Exp-Non Council Assets,Grants,
http://statistics.data.gov.uk/search?search=E07000114,Thanet District Council,19/04/2017,430377,1091.07,,10 Dalby Square (Management) Ltd,10D001,Corporate Resources and S151,Balance Sheet,Capital Exp-Non Council Assets,Grants,
http://statistics.data.gov.uk/search?search=E07000114,Thanet District Council,19/04/2017,429905,7346.26,,Albion Fencing&Construction Kent Ltd,ALB005,Operational Services,Revenue,"Repairs,  Alter & Mtce - Build",Building Construction Material,
http://statistics.data.gov.uk/search?search=E07000114,Thanet District Council,19/04/2017,429843,484.00,,All Access Ltd,ALL031,Community Services,Revenue,Services,Building Construction Material,
http://statistics.data.gov.uk/search?search=E07000114,Thanet District Council,19/04/2017,429885,253.80,,Arco Limited,ARC001,Operational Services,Revenue,"Clothes, Uniforms & Laundry",Clothing,
http://statistics.data.gov.uk/search?search=E07000114,Thanet District Council,19/04/2017,429800,2255.00,,Ass For Public Service Excellence,ASS013,Corporate Resources and S151,Revenue,Grants & Subscriptions,Human Resources,
http://statistics.data.gov.uk/search?search=E07000114,Thanet District Council,19/04/2017,430380,2891.23,,Bramling Construction Ltd,BRA020,Corporate Resources and S151,Balance Sheet,Capital Exp-Non Council Assets,Grants,
http://statistics.data.gov.uk/search?search=E07000114,Thanet District Council,19/04/2017,425793,1550.00,,British Destinations,BRA002,Community Services,Revenue,Grants & Subscriptions,Human Resources,
http://statistics.data.gov.uk/search?search=E07000114,Thanet District Council,19/04/2017,429801,1722.00,,Canon (Uk) Ltd,CAN021,Corporate Governance,Revenue,"Equip, Furniture And Materials",Facilities And Management Serv,
http://statistics.data.gov.uk/search?search=E07000114,Thanet District Council,19/04/2017,429489,2841.50,,Canterbury City Council,CAN004,Chief Executive,Revenue,Services,Various Cats - Public Sector,
http://statistics.data.gov.uk/search?search=E07000114,Thanet District Council,19/04/2017,429702,403.27,,Castle Automotive & Eng Supp Ltd,CAS024,Operational Services,Revenue,"Equip, Furniture And Materials",Vehicle Management,
http://statistics.data.gov.uk/search?search=E07000114,Thanet District Council,19/04/2017,429821,825.68,,Channel Commercials Plc,CCO001,Operational Services,Revenue,Direct Transport Costs,Vehicle Management,
http://statistics.data.gov.uk/search?search=E07000114,Thanet District Council,19/04/2017,430267,5180.00,,Civica Uk Ltd,CIV003,East Kent Shared Services,Revenue,Communications & Computing,Ict,
http://statistics.data.gov.uk/search?search=E07000114,Thanet District Council,19/04/2017,429900,382.52,,Cobalt Telephone Technologies Ltd,COB002,Operational Services,Revenue,Services,Ict,
http://statistics.data.gov.uk/search?search=E07000114,Thanet District Council,19/04/2017,429884,442.68,,Coombs (Canterbury) Ltd,COO033,Corporate Governance,Revenue,"Repairs,  Alter & Mtce - Build",Construction-Repair And Maint,
http://statistics.data.gov.uk/search?search=E07000114,Thanet District Council,19/04/2017,429989,300.00,,Countrystyle Recycling Limited,COU019,Operational Services,Revenue,Cont Hire & Operating Lease,Environmental Services,
http://statistics.data.gov.uk/search?search=E07000114,Thanet District Council,19/04/2017,429915,9013.34,,Decksafe Solutions Ltd,DEC004,Operational Services,Revenue,"Repairs,  Alter & Mtce - Build",Maritime Services,
http://statistics.data.gov.uk/search?search=E07000114,Thanet District Council,19/04/2017,429795,460.86,,Dennis Eagle Ltd,DEN005,Operational Services,Revenue,Direct Transport Costs,Vehicle Management,
http://statistics.data.gov.uk/search?search=E07000114,Thanet District Council,19/04/2017,429796,456.20,,Dennis Eagle Ltd,DEN005,Operational Services,Revenue,Direct Transport Costs,Vehicle Management,
http://statistics.data.gov.uk/search?search=E07000114,Thanet District Council,19/04/2017,430310,330.00,,District Councils Network,DIS016,Corporate Resources and S151,Revenue,"Print, Stat And Gen Off Exps",Human Resources,
http://statistics.data.gov.uk/search?search=E07000114,Thanet District Council,19/04/2017,430378,1138.22,,E Saunders Margate Ltd,SAU001,Corporate Governance,Revenue,"Repairs,  Alter & Mtce - Build",Construction-Repair And Maint,
http://statistics.data.gov.uk/search?search=E07000114,Thanet District Council,19/04/2017,429616,229.50,,East Kent Components Ltd,EKC006,Operational Services,Revenue,Direct Transport Costs,Vehicle Management,
http://statistics.data.gov.uk/search?search=E07000114,Thanet District Council,19/04/2017,429475,449.90,,East Kent Hose,EKH004,Operational Services,Revenue,Direct Transport Costs,Vehicle Management,
http://statistics.data.gov.uk/search?search=E07000114,Thanet District Council,19/04/2017,429488,2739.00,,Environment Agency,ENV001,Operational Services,Revenue,Services,Environmental Services,
http://statistics.data.gov.uk/search?search=E07000114,Thanet District Council,19/04/2017,429914,3750.00,,Estateman Limited,EST006,Corporate Governance,Revenue,Communications & Computing,Ict,
http://statistics.data.gov.uk/search?search=E07000114,Thanet District Council,19/04/2017,429561,930.00,,Florence Court Hotel,FLO003,Community Services,Revenue,Services,Housing Management,
http://statistics.data.gov.uk/search?search=E07000114,Thanet District Council,19/04/2017,429562,560.00,,Florence Court Hotel,FLO003,Community Services,Revenue,Services,Housing Management,
http://statistics.data.gov.uk/search?search=E07000114,Thanet District Council,19/04/2017,429563,1085.00,,Florence Court Hotel,FLO003,Community Services,Revenue,Services,Housing Management,
http://statistics.data.gov.uk/search?search=E07000114,Thanet District Council,19/04/2017,429564,930.00,,Florence Court Hotel,FLO003,Community Services,Revenue,Services,Housing Management,
http://statistics.data.gov.uk/search?search=E07000114,Thanet District Council,19/04/2017,429565,930.00,,Florence Court Hotel,FLO003,Community Services,Revenue,Services,Housing Management,
http://statistics.data.gov.uk/search?search=E07000114,Thanet District Council,19/04/2017,429566,1085.00,,Florence Court Hotel,FLO003,Community Services,Revenue,Services,Housing Management,
http://statistics.data.gov.uk/search?search=E07000114,Thanet District Council,19/04/2017,429567,1085.00,,Florence Court Hotel,FLO003,Community Services,Revenue,Services,Housing Management,
http://statistics.data.gov.uk/search?search=E07000114,Thanet District Council,19/04/2017,429568,1705.00,,Florence Court Hotel,FLO003,Community Services,Revenue,Services,Housing Management,
http://statistics.data.gov.uk/search?search=E07000114,Thanet District Council,19/04/2017,429569,930.00,,Florence Court Hotel,FLO003,Community Services,Revenue,Services,Housing Management,
http://statistics.data.gov.uk/search?search=E07000114,Thanet District Council,19/04/2017,429902,2708.69,,Gemini Consultants Ltd,GEM001,Corporate Resources and S151,Revenue,Services,Ict,
http://statistics.data.gov.uk/search?search=E07000114,Thanet District Council,19/04/2017,429903,1713.37,,Gemini Consultants Ltd,GEM001,Corporate Resources and S151,Revenue,Communications & Computing,Ict,
http://statistics.data.gov.uk/search?search=E07000114,Thanet District Council,19/04/2017,430174,1032.00,,Health & Safety Executive,HEA017,Operational Services,Revenue,Services,Health And Safety,
http://statistics.data.gov.uk/search?search=E07000114,Thanet District Council,19/04/2017,429873,310.00,,Institute Of Cemetery & Crem Mang,INS015,Operational Services,Revenue,Grants & Subscriptions,Cemetery And Crematorium,
http://statistics.data.gov.uk/search?search=E07000114,Thanet District Council,19/04/2017,430382,693.50,,John Gale,GAL001,Corporate Resources and S151,Balance Sheet,Capital Exp-Non Council Assets,Grants,
http://statistics.data.gov.uk/search?search=E07000114,Thanet District Council,19/04/2017,430384,1238.10,,John Gale,GAL001,Corporate Resources and S151,Balance Sheet,Capital Exp-Non Council Assets,Grants,
http://statistics.data.gov.uk/search?search=E07000114,Thanet District Council,19/04/2017,430019,313100.00,,Kent County Council,KCC002,Corporate Resources and S151,Balance Sheet,Capital Exp-Non Council Assets,Various Cats - Public Sector,
http://statistics.data.gov.uk/search?search=E07000114,Thanet District Council,19/04/2017,430370,19811.93,,Kent County Council,KCC002,Corporate Resources and S151,Balance Sheet,Capital Exp-Non Council Assets,Various Cats - Public Sector,
http://statistics.data.gov.uk/search?search=E07000114,Thanet District Council,19/04/2017,430371,25776.81,,Kent County Council,KCC002,Corporate Resources and S151,Balance Sheet,Capital Exp-Non Council Assets,Various Cats - Public Sector,
http://statistics.data.gov.uk/search?search=E07000114,Thanet District Council,19/04/2017,429471,8299.87,,Kent County Council (Kcs),KCC003,Corporate Governance,Revenue,Energy Costs,Facilities And Management Serv,
http://statistics.data.gov.uk/search?search=E07000114,Thanet District Council,19/04/2017,429671,9709.17,,Kent County Council (Kcs),KCC003,Operational Services,Revenue,Direct Transport Costs,Facilities And Management Serv,
http://statistics.data.gov.uk/search?search=E07000114,Thanet District Council,19/04/2017,429672,2613.10,,Kent County Council (Kcs),KCC003,Operational Services,Revenue,Direct Transport Costs,Facilities And Management Serv,
http://statistics.data.gov.uk/search?search=E07000114,Thanet District Council,19/04/2017,429673,4685.25,,Kent County Council (Kcs),KCC003,Operational Services,Revenue,Direct Transport Costs,Facilities And Management Serv,
http://statistics.data.gov.uk/search?search=E07000114,Thanet District Council,19/04/2017,430027,1169.77,,Kent County Council (Kcs),KCC003,Operational Services,Revenue,Energy Costs,Facilities And Management Serv,
http://statistics.data.gov.uk/search?search=E07000114,Thanet District Council,19/04/2017,430028,-1510.91,,Kent County Council (Kcs),KCC003,Operational Services,Revenue,Energy Costs,Facilities And Management Serv,
http://statistics.data.gov.uk/search?search=E07000114,Thanet District Council,19/04/2017,430199,-8299.87,,Kent County Council (Kcs),KCC003,Corporate Governance,Revenue,Energy Costs,Facilities And Management Serv,
http://statistics.data.gov.uk/search?search=E07000114,Thanet District Council,19/04/2017,430233,8662.96,,Kent County Council (Kcs),KCC003,Operational Services,Revenue,Energy Costs,Facilities And Management Serv,
http://statistics.data.gov.uk/search?search=E07000114,Thanet District Council,19/04/2017,430234,672.22,,Kent County Council (Kcs),KCC003,Corporate Governance,Revenue,Energy Costs,Facilities And Management Serv,
http://statistics.data.gov.uk/search?search=E07000114,Thanet District Council,19/04/2017,430236,556.34,,Kent County Council (Kcs),KCC003,Operational Services,Revenue,Energy Costs,Facilities And Management Serv,
http://statistics.data.gov.uk/search?search=E07000114,Thanet District Council,19/04/2017,430237,1092.98,,Kent County Council (Kcs),KCC003,Corporate Governance,Revenue,Energy Costs,Facilities And Management Serv,
http://statistics.data.gov.uk/search?search=E07000114,Thanet District Council,19/04/2017,430240,7943.91,,Kent County Council (Kcs),KCC003,Corporate Governance,Revenue,Energy Costs,Facilities And Management Serv,
http://statistics.data.gov.uk/search?search=E07000114,Thanet District Council,19/04/2017,430244,4458.95,,Kent County Council (Kcs),KCC003,Operational Services,Revenue,Energy Costs,Facilities And Management Serv,
http://statistics.data.gov.uk/search?search=E07000114,Thanet District Council,19/04/2017,430247,577.56,,Kent County Council (Kcs),KCC003,Operational Services,Revenue,Energy Costs,Facilities And Management Serv,
http://statistics.data.gov.uk/search?search=E07000114,Thanet District Council,19/04/2017,430250,2135.10,,Kent County Council (Kcs),KCC003,Operational Services,Revenue,Energy Costs,Facilities And Management Serv,
http://statistics.data.gov.uk/search?search=E07000114,Thanet District Council,19/04/2017,429869,390.00,,Kent Metro Ltd,KEN009,Operational Services,Revenue,Training,Human Resources,
http://statistics.data.gov.uk/search?search=E07000114,Thanet District Council,19/04/2017,430251,300.00,,Km Media Group Limited,KMM001,Corporate Governance,Revenue,Miscellaneous Expenses,Facilities And Management Serv,
http://statistics.data.gov.uk/search?search=E07000114,Thanet District Council,19/04/2017,429950,10450.00,,Local Government Association,LGA001,Chief Executive,Revenue,Grants & Subscriptions,Various Categories,
http://statistics.data.gov.uk/search?search=E07000114,Thanet District Council,19/04/2017,430022,440.00,,Lyreco Uk Limited,LYR001,Corporate Governance,Revenue,"Print, Stat And Gen Off Exps",Stationery,
http://statistics.data.gov.uk/search?search=E07000114,Thanet District Council,19/04/2017,430013,846.25,,Midland Software Limited,MID013,East Kent Shared Services,Revenue,Communications & Computing,Ict,
http://statistics.data.gov.uk/search?search=E07000114,Thanet District Council,19/04/2017,430014,7625.89,,Midland Software Limited,MID013,East Kent Shared Services,Revenue,Communications & Computing,Ict,
http://statistics.data.gov.uk/search?search=E07000114,Thanet District Council,19/04/2017,430015,1525.13,,Midland Software Limited,MID013,East Kent Shared Services,Revenue,Communications & Computing,Ict,
http://statistics.data.gov.uk/search?search=E07000114,Thanet District Council,19/04/2017,430016,343.00,,Midland Software Limited,MID013,East Kent Shared Services,Revenue,Communications & Computing,Ict,
http://statistics.data.gov.uk/search?search=E07000114,Thanet District Council,19/04/2017,429700,491.64,,Ncs Technology Ltd,NCS002,Operational Services,Revenue,"Equip, Furniture And Materials",Building Construction Material,
http://statistics.data.gov.uk/search?search=E07000114,Thanet District Council,19/04/2017,429994,291.98,,Neopost Ltd,NEO003,Corporate Governance,Revenue,"Print, Stat And Gen Off Exps",Mail Services,
http://statistics.data.gov.uk/search?search=E07000114,Thanet District Council,19/04/2017,429393,933.52,,One 51 Es Plastics (Uk) Limited,ONE006,Operational Services,Revenue,"Equip, Furniture And Materials",Environmental Services,
http://statistics.data.gov.uk/search?search=E07000114,Thanet District Council,19/04/2017,429661,70578.00,,Paramount Ind Property Services Llp,PAR074,Community Services,Revenue,Services,Housing Management,
http://statistics.data.gov.uk/search?search=E07000114,Thanet District Council,19/04/2017,429675,90.00,,Parkeon Limited,PAR063,Corporate Governance,Revenue,"Equip, Furniture And Materials",Street And Traffic Management,
http://statistics.data.gov.uk/search?search=E07000114,Thanet District Council,19/04/2017,429675,1424.75,,Parkeon Limited,PAR063,Operational Services,Revenue,"Equip, Furniture And Materials",Street And Traffic Management,
http://statistics.data.gov.uk/search?search=E07000114,Thanet District Council,19/04/2017,429898,1117.00,,Peer 1 (Uk) Limited,PEE003,East Kent Shared Services,Revenue,Communications & Computing,Ict,
http://statistics.data.gov.uk/search?search=E07000114,Thanet District Council,19/04/2017,429995,334.49,,Phoenix Software Ltd,PHO002,East Kent Shared Services,Revenue,Communications & Computing,Ict,
http://statistics.data.gov.uk/search?search=E07000114,Thanet District Council,19/04/2017,429544,277.99,,Preservation Equipment Ltd,PRE031,Community Services,Revenue,"Equip, Furniture And Materials",Stationery,
http://statistics.data.gov.uk/search?search=E07000114,Thanet District Council,19/04/2017,N/A,606.45,,REDACTED PERSONAL DATA,N/A,East Kent Shared Services,Revenue,Car Allowances,Non Trade Payee,
http://statistics.data.gov.uk/search?search=E07000114,Thanet District Council,19/04/2017,N/A,608.79,,REDACTED PERSONAL DATA,N/A,East Kent Shared Services,Revenue,Car Allowances,Non Trade Payee,
http://statistics.data.gov.uk/search?search=E07000114,Thanet District Council,19/04/2017,N/A,320.74,,REDACTED PERSONAL DATA,N/A,East Kent Shared Services,Revenue,Car Allowances,Non Trade Payee,
http://statistics.data.gov.uk/search?search=E07000114,Thanet District Council,19/04/2017,N/A,281.04,,REDACTED PERSONAL DATA,N/A,Community Services,Revenue,Car Allowances,Non Trade Payee,
http://statistics.data.gov.uk/search?search=E07000114,Thanet District Council,19/04/2017,N/A,168.16,,REDACTED PERSONAL DATA,N/A,Community Services,Revenue,Car Allowances,Non Trade Payee,
http://statistics.data.gov.uk/search?search=E07000114,Thanet District Council,19/04/2017,N/A,85.50,,REDACTED PERSONAL DATA,N/A,Community Services,Revenue,Public Transport,Non Trade Payee,
http://statistics.data.gov.uk/search?search=E07000114,Thanet District Council,19/04/2017,N/A,263.91,,REDACTED PERSONAL DATA,N/A,Community Services,Revenue,Car Allowances,Non Trade Payee,
http://statistics.data.gov.uk/search?search=E07000114,Thanet District Council,19/04/2017,N/A,276.37,,REDACTED PERSONAL DATA,N/A,Community Services,Revenue,Car Allowances,Non Trade Payee,
http://statistics.data.gov.uk/search?search=E07000114,Thanet District Council,19/04/2017,N/A,340.98,,REDACTED PERSONAL DATA,N/A,Community Services,Revenue,Car Allowances,Non Trade Payee,
http://statistics.data.gov.uk/search?search=E07000114,Thanet District Council,19/04/2017,N/A,252.23,,REDACTED PERSONAL DATA,N/A,Operational Services,Revenue,Car Allowances,Non Trade Payee,
http://statistics.data.gov.uk/search?search=E07000114,Thanet District Council,19/04/2017,N/A,301.28,,REDACTED PERSONAL DATA,N/A,Operational Services,Revenue,Car Allowances,Non Trade Payee,
http://statistics.data.gov.uk/search?search=E07000114,Thanet District Council,19/04/2017,N/A,316.85,,REDACTED PERSONAL DATA,N/A,Operational Services,Revenue,Car Allowances,Non Trade Payee,
http://statistics.data.gov.uk/search?search=E07000114,Thanet District Council,19/04/2017,429807,6107.53,,Scott Bradbury Limited,SCO018,East Kent Shared Services,Revenue,Expenses,Human Resources,
http://statistics.data.gov.uk/search?search=E07000114,Thanet District Council,19/04/2017,430025,4062.50,,Shoreline Surveys Limited,SHO001,Operational Services,Revenue,"Repairs,  Alter & Mtce - Build",Maritime Services,
http://statistics.data.gov.uk/search?search=E07000114,Thanet District Council,19/04/2017,430381,6935.00,,South East Building Company Limited,SEB001,Corporate Resources and S151,Balance Sheet,Capital Exp-Non Council Assets,Grants,
http://statistics.data.gov.uk/search?search=E07000114,Thanet District Council,19/04/2017,429666,1650.00,,South East Housing Group Ltd,SOU031,Community Services,Revenue,Services,Special Community Care,
http://statistics.data.gov.uk/search?search=E07000114,Thanet District Council,19/04/2017,429387,735.00,,Southeast Retail Ltd,SOU030,Community Services,Revenue,Services,Housing Management,
http://statistics.data.gov.uk/search?search=E07000114,Thanet District Council,19/04/2017,429574,735.00,,Southeast Retail Ltd,SOU030,Community Services,Revenue,Services,Housing Management,
http://statistics.data.gov.uk/search?search=E07000114,Thanet District Council,19/04/2017,429871,215.80,,Standfast Burglar Alarm Co (Ek) Ltd,STA003,Community Services,Revenue,"Repairs,  Alter & Mtce - Build",Facilities And Management Serv,
http://statistics.data.gov.uk/search?search=E07000114,Thanet District Council,19/04/2017,429849,7462.00,,Stonegrove Facilities Management Ltd,STO026,Operational Services,Revenue,"Repairs,  Alter & Mtce - Build",Cemetery And Crematorium,
http://statistics.data.gov.uk/search?search=E07000114,Thanet District Council,19/04/2017,429147,9000.00,,Swifty-Grafix,SWI012,Corporate Governance,Revenue,Services,Facilities And Management Serv,
http://statistics.data.gov.uk/search?search=E07000114,Thanet District Council,19/04/2017,429823,312.00,,Thanet Safe Limited,TSA004,Operational Services,Revenue,"Equip, Furniture And Materials",Facilities And Management Serv,
http://statistics.data.gov.uk/search?search=E07000114,Thanet District Council,19/04/2017,429947,2157.10,,Thanet Waste Services Ltd,TWA001,Operational Services,Revenue,Private Contractors,Environmental Services,
http://statistics.data.gov.uk/search?search=E07000114,Thanet District Council,19/04/2017,430033,2400.60,,The Copyright Licensing Agency Ltd,COP001,Corporate Resources and S151,Revenue,Grants & Subscriptions,Financial Services,
http://statistics.data.gov.uk/search?search=E07000114,Thanet District Council,19/04/2017,429870,1350.00,,The Duncan & Graham Partnership Ltd,DUN015,Corporate Resources and S151,Balance Sheet,Council Dwellings,Consultancy,
http://statistics.data.gov.uk/search?search=E07000114,Thanet District Council,19/04/2017,429140,3529.17,,The Glenwood Hotel,GLE007,Community Services,Revenue,Services,Housing Management,
http://statistics.data.gov.uk/search?search=E07000114,Thanet District Council,19/04/2017,429141,2800.00,,The Glenwood Hotel,GLE007,Community Services,Revenue,Services,Housing Management,
http://statistics.data.gov.uk/search?search=E07000114,Thanet District Council,19/04/2017,429142,3412.52,,The Glenwood Hotel,GLE007,Community Services,Revenue,Services,Housing Management,
http://statistics.data.gov.uk/search?search=E07000114,Thanet District Council,19/04/2017,429143,1937.50,,The Glenwood Hotel,GLE007,Community Services,Revenue,Services,Housing Management,
http://statistics.data.gov.uk/search?search=E07000114,Thanet District Council,19/04/2017,429875,5510.59,,The Yaboo Company Limited,YAB001,Operational Services,Revenue,"Equip, Furniture And Materials",Domestic Goods,
http://statistics.data.gov.uk/search?search=E07000114,Thanet District Council,19/04/2017,429596,960.00,,Tourism South East,TOU003,Community Services,Revenue,Services,Human Resources,
http://statistics.data.gov.uk/search?search=E07000114,Thanet District Council,19/04/2017,430383,16984.80,,Trueden Disability Adaptations Ltd,TRU012,Corporate Resources and S151,Balance Sheet,Capital Exp-Non Council Assets,Grants,
http://statistics.data.gov.uk/search?search=E07000114,Thanet District Council,19/04/2017,429814,2080.00,,Uplands Engineering Ltd,UPL001,Operational Services,Revenue,"Equip, Furniture And Materials",Maritime Services,
http://statistics.data.gov.uk/search?search=E07000114,Thanet District Council,19/04/2017,429832,292.79,,Viridor Waste Management Ltd,VIR003,Corporate Governance,Revenue,Private Contractors,Environmental Services,
http://statistics.data.gov.uk/search?search=E07000114,Thanet District Council,19/04/2017,429835,312.30,,Viridor Waste Management Ltd,VIR003,Corporate Governance,Revenue,Cleaning & Domestic Supplies,Environmental Services,
http://statistics.data.gov.uk/search?search=E07000114,Thanet District Council,19/04/2017,429852,4000.00,,Visit Kent Ltd,VIS005,Community Services,Revenue,Grants & Subscriptions,Arts And Leisure Services,
http://statistics.data.gov.uk/search?search=E07000114,Thanet District Council,19/04/2017,429998,235.00,,W Brazil & Bros,BRA001,Operational Services,Revenue,Grounds Mtce Costs,Environmental Services,
http://statistics.data.gov.uk/search?search=E07000114,Thanet District Council,19/04/2017,429794,2087.57,,Westbrook Construction (Margate) Ltd,WES021,Operational Services,Revenue,"Repairs,  Alter & Mtce - Build",Various Categories,
http://statistics.data.gov.uk/search?search=E07000114,Thanet District Council,20/04/2017,428865,12735.38,,Dcb (Kent) Ltd,DCB001,Corporate Resources and S151,Balance Sheet,Repairs And Mtce Holding A/C,Construction-Repair And Maint,
http://statistics.data.gov.uk/search?search=E07000114,Thanet District Council,20/04/2017,428867,146782.46,,Dcb (Kent) Ltd,DCB001,Corporate Resources and S151,Balance Sheet,Repairs And Mtce Holding A/C,Construction-Repair And Maint,
http://statistics.data.gov.uk/search?search=E07000114,Thanet District Council,20/04/2017,428868,4158.00,,Dcb (Kent) Ltd,DCB001,Corporate Resources and S151,Balance Sheet,Repairs And Mtce Holding A/C,Construction-Repair And Maint,
http://statistics.data.gov.uk/search?search=E07000114,Thanet District Council,20/04/2017,428929,370.00,,Gas Contract Services Ltd,GAS004,Corporate Resources and S151,Balance Sheet,Repairs And Mtce Holding A/C,Construction-Repair And Maint,
http://statistics.data.gov.uk/search?search=E07000114,Thanet District Council,20/04/2017,428912,420.00,,Holt & Wotton Ltd,HOL001,Corporate Resources and S151,Balance Sheet,Repairs And Mtce Holding A/C,Building Construction Material,
http://statistics.data.gov.uk/search?search=E07000114,Thanet District Council,20/04/2017,430579,267244.00,,Kent & Medway Towns Fire Authority,KMT001,Corporate Resources and S151,Balance Sheet,Collection Fund - Preceptors,Various Cats - Public Sector,
http://statistics.data.gov.uk/search?search=E07000114,Thanet District Council,20/04/2017,430580,4273999.00,,Kent County Council,KCC022,Corporate Resources and S151,Balance Sheet,Collection Fund - Preceptors,Various Cats - Public Sector,
http://statistics.data.gov.uk/search?search=E07000114,Thanet District Council,20/04/2017,430581,566766.00,,Kent Police & Crime Commissioner,KPA003,Corporate Resources and S151,Balance Sheet,Collection Fund - Preceptors,Various Cats - Public Sector,
http://statistics.data.gov.uk/search?search=E07000114,Thanet District Council,20/04/2017,428858,3465.00,,W Brazil & Bros,BRA001,Operational Services,Revenue,"Repairs,  Alter & Mtce - Build",Environmental Services,
http://statistics.data.gov.uk/search?search=E07000114,Thanet District Council,25/04/2017,429842,431.20,,All Access Ltd,ALL031,Corporate Resources and S151,Balance Sheet,Rechargeable Works,Building Construction Material,
http://statistics.data.gov.uk/search?search=E07000114,Thanet District Council,25/04/2017,429916,6389.51,,Ats Euromaster Ltd,ATS002,Operational Services,Revenue,Direct Transport Costs,Vehicle Management,
http://statistics.data.gov.uk/search?search=E07000114,Thanet District Council,25/04/2017,430009,63607.57,,British Telecommunications Plc,BTE005,Operational Services,Revenue,Communications & Computing,Ict,
http://statistics.data.gov.uk/search?search=E07000114,Thanet District Council,25/04/2017,430004,620.00,,C J Doors & Shutters Limited,CJD002,Operational Services,Revenue,"Equip, Furniture And Materials",Building Construction Material,
http://statistics.data.gov.uk/search?search=E07000114,Thanet District Council,25/04/2017,430278,286.01,,Canon (Uk) Ltd,CAN021,Corporate Governance,Revenue,"Equip, Furniture And Materials",Facilities And Management Serv,
http://statistics.data.gov.uk/search?search=E07000114,Thanet District Council,25/04/2017,430363,339.09,,Canon (Uk) Ltd,CAN021,Community Services,Revenue,"Equip, Furniture And Materials",Facilities And Management Serv,
http://statistics.data.gov.uk/search?search=E07000114,Thanet District Council,25/04/2017,430003,2602.45,,Capita Business Services Ltd,CAP001,Corporate Resources and S151,Revenue,Communications & Computing,Human Resources,
http://statistics.data.gov.uk/search?search=E07000114,Thanet District Council,25/04/2017,430547,415.96,,Capita It Services Limited,CAP017,Operational Services,Revenue,Communications & Computing,Ict,
http://statistics.data.gov.uk/search?search=E07000114,Thanet District Council,25/04/2017,430549,1104.87,,Capita It Services Limited,CAP017,Corporate Governance,Revenue,"Repairs,  Alter & Mtce - Build",Ict,
http://statistics.data.gov.uk/search?search=E07000114,Thanet District Council,25/04/2017,429897,2629.80,,Cobalt Telephone Technologies Ltd,COB002,Operational Services,Revenue,Services,Ict,
http://statistics.data.gov.uk/search?search=E07000114,Thanet District Council,25/04/2017,430761,49476.77,,D C L G,DCL002,Corporate Resources and S151,Balance Sheet,Capital Receipts Reserve,Government Agencies,
http://statistics.data.gov.uk/search?search=E07000114,Thanet District Council,25/04/2017,430388,35007.22,,Dcb (Kent) Ltd,DCB001,Corporate Resources and S151,Balance Sheet,Repairs And Mtce Holding A/C,Construction-Repair And Maint,
http://statistics.data.gov.uk/search?search=E07000114,Thanet District Council,25/04/2017,430389,3149.70,,Dcb (Kent) Ltd,DCB001,Corporate Resources and S151,Balance Sheet,Repairs And Mtce Holding A/C,Construction-Repair And Maint,
http://statistics.data.gov.uk/search?search=E07000114,Thanet District Council,25/04/2017,430390,1270.50,,Dcb (Kent) Ltd,DCB001,Corporate Resources and S151,Balance Sheet,Repairs And Mtce Holding A/C,Construction-Repair And Maint,
http://statistics.data.gov.uk/search?search=E07000114,Thanet District Council,25/04/2017,430386,2075.00,,Dr R K Chhabra,CHH001,Operational Services,Revenue,Services,Cemetery And Crematorium,
http://statistics.data.gov.uk/search?search=E07000114,Thanet District Council,25/04/2017,430597,222.66,,E.On,EON001,Community Services,Revenue,Energy Costs,Utilities,
http://statistics.data.gov.uk/search?search=E07000114,Thanet District Council,25/04/2017,429583,210.00,,East Kent Components Ltd,EKC006,Operational Services,Revenue,Direct Transport Costs,Vehicle Management,
http://statistics.data.gov.uk/search?search=E07000114,Thanet District Council,25/04/2017,429618,224.28,,East Kent Components Ltd,EKC006,Operational Services,Revenue,Direct Transport Costs,Vehicle Management,
http://statistics.data.gov.uk/search?search=E07000114,Thanet District Council,25/04/2017,429620,220.00,,East Kent Components Ltd,EKC006,Operational Services,Revenue,Direct Transport Costs,Vehicle Management,
http://statistics.data.gov.uk/search?search=E07000114,Thanet District Council,25/04/2017,430530,255.03,,Edf Energy Customer Field Services,EDF003,Operational Services,Revenue,Energy Costs,Utilities,
http://statistics.data.gov.uk/search?search=E07000114,Thanet District Council,25/04/2017,429847,373.20,,Farrer Barnes Limited,FAR012,Corporate Resources and S151,Revenue,Agency Staff,Human Resources,
http://statistics.data.gov.uk/search?search=E07000114,Thanet District Council,25/04/2017,430272,571.07,,Farrer Barnes Limited,FAR012,Corporate Resources and S151,Revenue,Agency Staff,Human Resources,
http://statistics.data.gov.uk/search?search=E07000114,Thanet District Council,25/04/2017,430274,639.97,,Farrer Barnes Limited,FAR012,Corporate Resources and S151,Revenue,Agency Staff,Human Resources,
http://statistics.data.gov.uk/search?search=E07000114,Thanet District Council,25/04/2017,430275,694.29,,Farrer Barnes Limited,FAR012,Corporate Resources and S151,Revenue,Agency Staff,Human Resources,
http://statistics.data.gov.uk/search?search=E07000114,Thanet District Council,25/04/2017,430657,562.61,,Farrer Barnes Limited,FAR012,Corporate Resources and S151,Revenue,Agency Staff,Human Resources,
http://statistics.data.gov.uk/search?search=E07000114,Thanet District Council,25/04/2017,430658,518.68,,Farrer Barnes Limited,FAR012,Corporate Resources and S151,Revenue,Agency Staff,Human Resources,
http://statistics.data.gov.uk/search?search=E07000114,Thanet District Council,25/04/2017,429856,504.00,,Frandham Boarding Kennels,FRA010,Operational Services,Revenue,Services,Environmental Services,
http://statistics.data.gov.uk/search?search=E07000114,Thanet District Council,25/04/2017,429946,789.73,,Hi Way Services Ltd,HIW002,Operational Services,Revenue,"Repairs,  Alter & Mtce - Build",Highway Equipment And Material,
http://statistics.data.gov.uk/search?search=E07000114,Thanet District Council,25/04/2017,429818,1230.00,,Hiddleston Ltd,HID003,Corporate Governance,Revenue,Services,Legal Services,
http://statistics.data.gov.uk/search?search=E07000114,Thanet District Council,25/04/2017,428700,8942.31,,Hr Go (Kent) Ltd,HRG001,Operational Services,Revenue,Agency Staff,Human Resources,
http://statistics.data.gov.uk/search?search=E07000114,Thanet District Council,25/04/2017,428871,1341.62,,Hr Go (Kent) Ltd,HRG001,Operational Services,Revenue,Agency Staff,Human Resources,
http://statistics.data.gov.uk/search?search=E07000114,Thanet District Council,25/04/2017,428873,1091.50,,Hr Go (Kent) Ltd,HRG001,Operational Services,Revenue,Agency Staff,Human Resources,
http://statistics.data.gov.uk/search?search=E07000114,Thanet District Council,25/04/2017,428875,383.04,,Hr Go (Kent) Ltd,HRG001,Operational Services,Revenue,Agency Staff,Human Resources,
http://statistics.data.gov.uk/search?search=E07000114,Thanet District Council,25/04/2017,428876,394.50,,Hr Go (Kent) Ltd,HRG001,Operational Services,Revenue,Agency Staff,Human Resources,
http://statistics.data.gov.uk/search?search=E07000114,Thanet District Council,25/04/2017,429135,1435.45,,Hr Go (Kent) Ltd,HRG001,Operational Services,Revenue,Agency Staff,Human Resources,
http://statistics.data.gov.uk/search?search=E07000114,Thanet District Council,25/04/2017,429137,11348.34,,Hr Go (Kent) Ltd,HRG001,Operational Services,Revenue,Agency Staff,Human Resources,
http://statistics.data.gov.uk/search?search=E07000114,Thanet District Council,25/04/2017,429503,475.82,,Hr Go (Kent) Ltd,HRG001,Community Services,Revenue,Agency Staff,Human Resources,
http://statistics.data.gov.uk/search?search=E07000114,Thanet District Council,25/04/2017,429504,1091.50,,Hr Go (Kent) Ltd,HRG001,Operational Services,Revenue,Agency Staff,Human Resources,
http://statistics.data.gov.uk/search?search=E07000114,Thanet District Council,25/04/2017,429505,1198.59,,Hr Go (Kent) Ltd,HRG001,Operational Services,Revenue,Agency Staff,Human Resources,
http://statistics.data.gov.uk/search?search=E07000114,Thanet District Council,25/04/2017,429506,1341.62,,Hr Go (Kent) Ltd,HRG001,Operational Services,Revenue,Agency Staff,Human Resources,
http://statistics.data.gov.uk/search?search=E07000114,Thanet District Council,25/04/2017,429507,219.45,,Hr Go (Kent) Ltd,HRG001,Corporate Governance,Revenue,Agency Staff,Human Resources,
http://statistics.data.gov.uk/search?search=E07000114,Thanet District Council,25/04/2017,429512,486.55,,Hr Go (Kent) Ltd,HRG001,Operational Services,Revenue,Agency Staff,Human Resources,
http://statistics.data.gov.uk/search?search=E07000114,Thanet District Council,25/04/2017,429518,451.87,,Hr Go (Kent) Ltd,HRG001,Operational Services,Revenue,Agency Staff,Human Resources,
http://statistics.data.gov.uk/search?search=E07000114,Thanet District Council,25/04/2017,429625,11836.02,,Hr Go (Kent) Ltd,HRG001,Operational Services,Revenue,Agency Staff,Human Resources,
http://statistics.data.gov.uk/search?search=E07000114,Thanet District Council,25/04/2017,429658,346.19,,Hr Go (Kent) Ltd,HRG001,Operational Services,Revenue,Agency Staff,Human Resources,
http://statistics.data.gov.uk/search?search=E07000114,Thanet District Council,25/04/2017,429888,219.45,,Hr Go (Kent) Ltd,HRG001,Corporate Governance,Revenue,Agency Staff,Human Resources,
http://statistics.data.gov.uk/search?search=E07000114,Thanet District Council,25/04/2017,429889,1344.08,,Hr Go (Kent) Ltd,HRG001,Operational Services,Revenue,Agency Staff,Human Resources,
http://statistics.data.gov.uk/search?search=E07000114,Thanet District Council,25/04/2017,429890,1091.50,,Hr Go (Kent) Ltd,HRG001,Operational Services,Revenue,Agency Staff,Human Resources,
http://statistics.data.gov.uk/search?search=E07000114,Thanet District Council,25/04/2017,429891,484.82,,Hr Go (Kent) Ltd,HRG001,Operational Services,Revenue,Agency Staff,Human Resources,
http://statistics.data.gov.uk/search?search=E07000114,Thanet District Council,25/04/2017,429893,1167.04,,Hr Go (Kent) Ltd,HRG001,Operational Services,Revenue,Agency Staff,Human Resources,
http://statistics.data.gov.uk/search?search=E07000114,Thanet District Council,25/04/2017,429894,1748.62,,Hr Go (Kent) Ltd,HRG001,Operational Services,Revenue,Agency Staff,Human Resources,
http://statistics.data.gov.uk/search?search=E07000114,Thanet District Council,25/04/2017,429895,486.55,,Hr Go (Kent) Ltd,HRG001,Operational Services,Revenue,Agency Staff,Human Resources,
http://statistics.data.gov.uk/search?search=E07000114,Thanet District Council,25/04/2017,429896,475.82,,Hr Go (Kent) Ltd,HRG001,Community Services,Revenue,Agency Staff,Human Resources,
http://statistics.data.gov.uk/search?search=E07000114,Thanet District Council,25/04/2017,430007,438.03,,Hr Go (Kent) Ltd,HRG001,Operational Services,Revenue,Agency Staff,Human Resources,
http://statistics.data.gov.uk/search?search=E07000114,Thanet District Council,25/04/2017,430008,11169.52,,Hr Go (Kent) Ltd,HRG001,Operational Services,Revenue,Agency Staff,Human Resources,
http://statistics.data.gov.uk/search?search=E07000114,Thanet District Council,25/04/2017,430221,1427.54,,Hr Go (Kent) Ltd,HRG001,Operational Services,Revenue,Agency Staff,Human Resources,
http://statistics.data.gov.uk/search?search=E07000114,Thanet District Council,25/04/2017,430223,486.55,,Hr Go (Kent) Ltd,HRG001,Operational Services,Revenue,Agency Staff,Human Resources,
http://statistics.data.gov.uk/search?search=E07000114,Thanet District Council,25/04/2017,430225,475.82,,Hr Go (Kent) Ltd,HRG001,Community Services,Revenue,Agency Staff,Human Resources,
http://statistics.data.gov.uk/search?search=E07000114,Thanet District Council,25/04/2017,430227,230.37,,Hr Go (Kent) Ltd,HRG001,Corporate Governance,Revenue,Agency Staff,Human Resources,
http://statistics.data.gov.uk/search?search=E07000114,Thanet District Council,25/04/2017,430229,493.70,,Hr Go (Kent) Ltd,HRG001,Community Services,Revenue,Agency Staff,Human Resources,
http://statistics.data.gov.uk/search?search=E07000114,Thanet District Council,25/04/2017,430762,319.50,,John Gale,GAL001,Corporate Resources and S151,Balance Sheet,Capital Exp-Non Council Assets,Grants,
http://statistics.data.gov.uk/search?search=E07000114,Thanet District Council,25/04/2017,429793,400.00,,Kent County Council,KCC002,Operational Services,Revenue,Expenses,Various Cats - Public Sector,
http://statistics.data.gov.uk/search?search=E07000114,Thanet District Council,25/04/2017,430393,295.61,,Kent County Council (Kcs),KCC003,Community Services,Revenue,Energy Costs,Facilities And Management Serv,
http://statistics.data.gov.uk/search?search=E07000114,Thanet District Council,25/04/2017,430394,583.45,,Kent County Council (Kcs),KCC003,Community Services,Revenue,Energy Costs,Facilities And Management Serv,
http://statistics.data.gov.uk/search?search=E07000114,Thanet District Council,25/04/2017,430395,-1390.31,,Kent County Council (Kcs),KCC003,Community Services,Revenue,Energy Costs,Facilities And Management Serv,
http://statistics.data.gov.uk/search?search=E07000114,Thanet District Council,25/04/2017,430557,1409.31,,Kent County Council (Kcs),KCC003,Corporate Governance,Revenue,Energy Costs,Facilities And Management Serv,
http://statistics.data.gov.uk/search?search=E07000114,Thanet District Council,25/04/2017,430561,7366.80,,Kent County Council (Kcs),KCC003,Corporate Governance,Revenue,Energy Costs,Facilities And Management Serv,
http://statistics.data.gov.uk/search?search=E07000114,Thanet District Council,25/04/2017,429887,5016.25,,Kingdom Security Limited,KIN039,Operational Services,Revenue,Services,Street And Traffic Management,
http://statistics.data.gov.uk/search?search=E07000114,Thanet District Council,25/04/2017,429949,377.00,,Ling Metals Limited,LIN004,Operational Services,Revenue,Cleaning & Domestic Supplies,Environmental Services,
http://statistics.data.gov.uk/search?search=E07000114,Thanet District Council,25/04/2017,430545,73.00,,Ling Metals Limited,LIN004,Operational Services,Revenue,Cleaning & Domestic Supplies,Environmental Services,
http://statistics.data.gov.uk/search?search=E07000114,Thanet District Council,25/04/2017,428883,276.39,,Lyreco Uk Limited,LYR001,Corporate Resources and S151,Revenue,Stationery Stores,Stationery,
http://statistics.data.gov.uk/search?search=E07000114,Thanet District Council,25/04/2017,428883,0.16,,Lyreco Uk Limited,LYR001,Corporate Resources and S151,Revenue,Stationery Stores,Stationery,
http://statistics.data.gov.uk/search?search=E07000114,Thanet District Council,25/04/2017,430683,8.10,,Lyreco Uk Limited,LYR001,Corporate Resources and S151,Revenue,Services,Stationery,
http://statistics.data.gov.uk/search?search=E07000114,Thanet District Council,25/04/2017,424856,216.20,,Main Man Supplies Ltd,MAI001,Operational Services,Revenue,"Clothes, Uniforms & Laundry",Clothing,
http://statistics.data.gov.uk/search?search=E07000114,Thanet District Council,25/04/2017,430684,16.70,,Main Man Supplies Ltd,MAI001,Operational Services,Revenue,"Clothes, Uniforms & Laundry",Clothing,
http://statistics.data.gov.uk/search?search=E07000114,Thanet District Council,25/04/2017,429698,22059.25,,Ncs Technology Ltd,NCS002,Corporate Resources and S151,Balance Sheet,Plant And Equipment,Building Construction Material,
http://statistics.data.gov.uk/search?search=E07000114,Thanet District Council,25/04/2017,429698,481.99,,Ncs Technology Ltd,NCS002,Operational Services,Revenue,"Equip, Furniture And Materials",Building Construction Material,
http://statistics.data.gov.uk/search?search=E07000114,Thanet District Council,25/04/2017,429699,21160.67,,Ncs Technology Ltd,NCS002,Corporate Resources and S151,Balance Sheet,Plant And Equipment,Building Construction Material,
http://statistics.data.gov.uk/search?search=E07000114,Thanet District Council,25/04/2017,429699,161.11,,Ncs Technology Ltd,NCS002,Operational Services,Revenue,"Equip, Furniture And Materials",Building Construction Material,
http://statistics.data.gov.uk/search?search=E07000114,Thanet District Council,25/04/2017,430639,594.97,,Scottish Water Business Stream Ltd,SCO019,Community Services,Revenue,Water Services,Utilities,
http://statistics.data.gov.uk/search?search=E07000114,Thanet District Council,25/04/2017,430640,291.70,,Scottish Water Business Stream Ltd,SCO019,Community Services,Revenue,Water Services,Utilities,
http://statistics.data.gov.uk/search?search=E07000114,Thanet District Council,25/04/2017,430641,893.97,,Scottish Water Business Stream Ltd,SCO019,Community Services,Revenue,Water Services,Utilities,
http://statistics.data.gov.uk/search?search=E07000114,Thanet District Council,25/04/2017,429868,340.00,,Specsavers Optical Superstores Ltd,SPE025,Corporate Resources and S151,Revenue,Employee Related Schemes,Healthcare,
http://statistics.data.gov.uk/search?search=E07000114,Thanet District Council,25/04/2017,429531,1566.25,,Studio Sam Causer Ltd,STU015,Corporate Resources and S151,Balance Sheet,Community Assets,Construction-Repair And Maint,
http://statistics.data.gov.uk/search?search=E07000114,Thanet District Council,25/04/2017,427507,-539.50,,Swale Heating Ltd,SWA006,Corporate Resources and S151,Balance Sheet,Repairs And Mtce Holding A/C,Building Construction Material,
http://statistics.data.gov.uk/search?search=E07000114,Thanet District Council,25/04/2017,429678,26061.14,,Swale Heating Ltd,SWA006,Corporate Resources and S151,Balance Sheet,Repairs And Mtce Holding A/C,Building Construction Material,
http://statistics.data.gov.uk/search?search=E07000114,Thanet District Council,25/04/2017,429681,306.51,,Swale Heating Ltd,SWA006,Corporate Resources and S151,Balance Sheet,Repairs And Mtce Holding A/C,Building Construction Material,
http://statistics.data.gov.uk/search?search=E07000114,Thanet District Council,25/04/2017,429389,11267.03,,Town & Country Cleaners Ltd,TOW002,Corporate Resources and S151,Balance Sheet,Repairs And Mtce Holding A/C,Cleaning And Janitorial,
http://statistics.data.gov.uk/search?search=E07000114,Thanet District Council,25/04/2017,430000,1200.00,,W Brazil & Bros,BRA001,Corporate Resources and S151,Balance Sheet,Repairs And Mtce Holding A/C,Environmental Services,
http://statistics.data.gov.uk/search?search=E07000114,Thanet District Council,25/04/2017,429803,410.00,,Westbrook Construction (Margate) Ltd,WES021,Operational Services,Revenue,"Repairs,  Alter & Mtce - Build",Various Categories,
http://statistics.data.gov.uk/search?search=E07000114,Thanet District Council,26/04/2017,429533,5800.00,,Accordio Limited,ACC010,East Kent Shared Services,Revenue,Services,Consultancy,
http://statistics.data.gov.uk/search?search=E07000114,Thanet District Council,26/04/2017,430831,2188.00,,Acol Parish Council,ACO001,Corporate Resources and S151,Balance Sheet,Collection Fund - Preceptors,Various Cats - Public Sector,
http://statistics.data.gov.uk/search?search=E07000114,Thanet District Council,26/04/2017,430831,340.07,,Acol Parish Council,ACO001,Operational Services,Revenue,Other Local Authorities,Various Cats - Public Sector,
http://statistics.data.gov.uk/search?search=E07000114,Thanet District Council,26/04/2017,PC9495,125.00,,Adjacent Digital Politics,N/A,Community Services,Revenue,Miscellaneous Expenses,Facilities And Management Serv,
http://statistics.data.gov.uk/search?search=E07000114,Thanet District Council,26/04/2017,PC9414,100.00,,Alexander Motorcycles,N/A,Operational Services,Revenue,"Equip, Furniture And Materials",Vehicle Management,
http://statistics.data.gov.uk/search?search=E07000114,Thanet District Council,26/04/2017,PC9408,22.99,,All About Safes,N/A,Community Services,Revenue,"Equip, Furniture And Materials",Facilities And Management Serv,
http://statistics.data.gov.uk/search?search=E07000114,Thanet District Council,26/04/2017,PC9388,38.89,,Amazon UK Marketplace,N/A,Operational Services,Revenue,Miscellaneous Expenses,Stationery,
http://statistics.data.gov.uk/search?search=E07000114,Thanet District Council,26/04/2017,PC9389,84.99,14.17,Amazon UK Marketplace,N/A,Operational Services,Revenue,Miscellaneous Expenses,Stationery,
http://statistics.data.gov.uk/search?search=E07000114,Thanet District Council,26/04/2017,PC9390,112.28,18.72,Amazon UK Marketplace,N/A,Operational Services,Revenue,Miscellaneous Expenses,Stationery,
http://statistics.data.gov.uk/search?search=E07000114,Thanet District Council,26/04/2017,PC9413,12.99,2.17,Amazon UK Marketplace,N/A,Operational Services,Revenue,"Equip, Furniture And Materials",Stationery,
http://statistics.data.gov.uk/search?search=E07000114,Thanet District Council,26/04/2017,PC9419,8.50,,Amazon UK Marketplace,N/A,Corporate Governance,Revenue,"Print, Stat And Gen Off Exps",Stationery,
http://statistics.data.gov.uk/search?search=E07000114,Thanet District Council,26/04/2017,PC9492,10.99,,Amazon UK Marketplace,N/A,Community Services,Revenue,"Print, Stat And Gen Off Exps",Stationery,
http://statistics.data.gov.uk/search?search=E07000114,Thanet District Council,26/04/2017,PC9500,11.95,2,Amazon UK Marketplace,N/A,Operational Services,Revenue,"Equip, Furniture And Materials",Stationery,
http://statistics.data.gov.uk/search?search=E07000114,Thanet District Council,26/04/2017,PC9482,154.00,,Aquahot,N/A,Operational Services,Revenue,"Equip, Furniture And Materials",Building Construction Material,
http://statistics.data.gov.uk/search?search=E07000114,Thanet District Council,26/04/2017,PC9421,245.77,,Argos,N/A,Community Services,Revenue,Services,Facilities And Management Serv,
http://statistics.data.gov.uk/search?search=E07000114,Thanet District Council,26/04/2017,PC9381,14.98,,Argos Ltd,N/A,Operational Services,Revenue,"Equip, Furniture And Materials",Facilities And Management Serv,
http://statistics.data.gov.uk/search?search=E07000114,Thanet District Council,26/04/2017,PC9487,11.66,,Argos Ltd,N/A,Operational Services,Revenue,"Equip, Furniture And Materials",Facilities And Management Serv,
http://statistics.data.gov.uk/search?search=E07000114,Thanet District Council,26/04/2017,PC9491,4.99,,Argos Ltd,N/A,Operational Services,Revenue,"Equip, Furniture And Materials",Facilities And Management Serv,
http://statistics.data.gov.uk/search?search=E07000114,Thanet District Council,26/04/2017,PC9480,5.30,,Asda,N/A,Corporate Governance,Revenue,Catering,Catering,
http://statistics.data.gov.uk/search?search=E07000114,Thanet District Council,26/04/2017,430832,27485.00,,Birchington Parish Council,BIR001,Corporate Resources and S151,Balance Sheet,Collection Fund - Preceptors,Various Cats - Public Sector,
http://statistics.data.gov.uk/search?search=E07000114,Thanet District Council,26/04/2017,430832,1605.31,,Birchington Parish Council,BIR001,Operational Services,Revenue,Other Local Authorities,Various Cats - Public Sector,
http://statistics.data.gov.uk/search?search=E07000114,Thanet District Council,26/04/2017,PC9409,13.58,,Booker Ltd,N/A,Operational Services,Revenue,Catering,Catering,
http://statistics.data.gov.uk/search?search=E07000114,Thanet District Council,26/04/2017,PC9410,51.99,,Booker Ltd,N/A,Corporate Governance,Revenue,Catering,Catering,
http://statistics.data.gov.uk/search?search=E07000114,Thanet District Council,26/04/2017,PC9411,17.15,,Booker Ltd,N/A,Community Services,Revenue,Catering,Catering,
http://statistics.data.gov.uk/search?search=E07000114,Thanet District Council,26/04/2017,PC9412,15.36,,Booker Ltd,N/A,Community Services,Revenue,Catering,Catering,
http://statistics.data.gov.uk/search?search=E07000114,Thanet District Council,26/04/2017,PC9441,27.74,,Booker Ltd,N/A,Corporate Governance,Revenue,Catering,Catering,
http://statistics.data.gov.uk/search?search=E07000114,Thanet District Council,26/04/2017,PC9442,32.87,,Booker Ltd,N/A,Corporate Governance,Revenue,Catering,Catering,
http://statistics.data.gov.uk/search?search=E07000114,Thanet District Council,26/04/2017,PC9443,1.99,,Booker Ltd,N/A,Operational Services,Revenue,Miscellaneous Expenses,Catering,
http://statistics.data.gov.uk/search?search=E07000114,Thanet District Council,26/04/2017,PC9444,59.35,,Booker Ltd,N/A,Operational Services,Revenue,Miscellaneous Expenses,Catering,
http://statistics.data.gov.uk/search?search=E07000114,Thanet District Council,26/04/2017,PC9455,9.76,,Booker Ltd,N/A,Operational Services,Revenue,Miscellaneous Expenses,Catering,
http://statistics.data.gov.uk/search?search=E07000114,Thanet District Council,26/04/2017,PC9503,15.56,,Booker Ltd,N/A,Corporate Governance,Revenue,Catering,Catering,
http://statistics.data.gov.uk/search?search=E07000114,Thanet District Council,26/04/2017,PC9456,13.56,,Boots,N/A,Chief Executive,Revenue,Catering,Healthcare,
http://statistics.data.gov.uk/search?search=E07000114,Thanet District Council,26/04/2017,430833,231676.00,,Broadstairs & St Peters Town Council,BRO005,Corporate Resources and S151,Balance Sheet,Collection Fund - Preceptors,Various Cats - Public Sector,
http://statistics.data.gov.uk/search?search=E07000114,Thanet District Council,26/04/2017,430833,9350.20,,Broadstairs & St Peters Town Council,BRO005,Operational Services,Revenue,Other Local Authorities,Various Cats - Public Sector,
http://statistics.data.gov.uk/search?search=E07000114,Thanet District Council,26/04/2017,PC9406,72.70,,Carrier Bag Shop,N/A,Community Services,Revenue,"Equip, Furniture And Materials",Stationery,
http://statistics.data.gov.uk/search?search=E07000114,Thanet District Council,26/04/2017,430829,750.00,,Caxtons Commercial Ltd,CAX006,Corporate Governance,Revenue,Services,Consultancy,
http://statistics.data.gov.uk/search?search=E07000114,Thanet District Council,26/04/2017,PC9502,137.75,,Certsure,N/A,Operational Services,Revenue,"Equip, Furniture And Materials",Building Construction Material,
http://statistics.data.gov.uk/search?search=E07000114,Thanet District Council,26/04/2017,430012,427.50,,Channel Commercials Plc,CCO001,Operational Services,Revenue,Direct Transport Costs,Vehicle Management,
http://statistics.data.gov.uk/search?search=E07000114,Thanet District Council,26/04/2017,PC9439,420.00,,Chapeldown.com,N/A,Community Services,Revenue,"Equip, Furniture And Materials",Catering,
http://statistics.data.gov.uk/search?search=E07000114,Thanet District Council,26/04/2017,430834,7438.00,,Cliffsend Parish Council,CLI015,Corporate Resources and S151,Balance Sheet,Collection Fund - Preceptors,Various Cats - Public Sector,
http://statistics.data.gov.uk/search?search=E07000114,Thanet District Council,26/04/2017,430834,363.38,,Cliffsend Parish Council,CLI015,Operational Services,Revenue,Other Local Authorities,Various Cats - Public Sector,
http://statistics.data.gov.uk/search?search=E07000114,Thanet District Council,26/04/2017,PC9446,75.43,,Co-Op Group - Petrol,N/A,Operational Services,Revenue,Direct Transport Costs,Vehicle Management,
http://statistics.data.gov.uk/search?search=E07000114,Thanet District Council,26/04/2017,PC9447,90.68,,Co-Op Group - Petrol,N/A,Operational Services,Revenue,Direct Transport Costs,Vehicle Management,
http://statistics.data.gov.uk/search?search=E07000114,Thanet District Council,26/04/2017,PC9448,134.02,,Co-Op Group - Petrol,N/A,Operational Services,Revenue,Direct Transport Costs,Vehicle Management,
http://statistics.data.gov.uk/search?search=E07000114,Thanet District Council,26/04/2017,PC9452,121.00,,County Court Canterbury,N/A,Community Services,Revenue,Services,Various Cats - Public Sector,
http://statistics.data.gov.uk/search?search=E07000114,Thanet District Council,26/04/2017,PC9485,120.24,,Dave Fox Motorcycles,N/A,Operational Services,Revenue,"Equip, Furniture And Materials",Vehicle Management,
http://statistics.data.gov.uk/search?search=E07000114,Thanet District Council,26/04/2017,PC9486,29.65,,Dave Fox Motorcycles,N/A,Operational Services,Revenue,"Equip, Furniture And Materials",Vehicle Management,
http://statistics.data.gov.uk/search?search=E07000114,Thanet District Council,26/04/2017,PC9463,257.17,,Diamond Publishing Ltd,N/A,Corporate Governance,Revenue,Grants & Subscriptions,Stationery,
http://statistics.data.gov.uk/search?search=E07000114,Thanet District Council,26/04/2017,PC9423,142.50,,DVLA Vehicle Tax,N/A,Community Services,Revenue,Direct Transport Costs,Various Cats - Public Sector,
http://statistics.data.gov.uk/search?search=E07000114,Thanet District Council,26/04/2017,PC9424,232.50,,DVLA Vehicle Tax,N/A,Operational Services,Revenue,Direct Transport Costs,Various Cats - Public Sector,
http://statistics.data.gov.uk/search?search=E07000114,Thanet District Council,26/04/2017,PC9425,232.50,,DVLA Vehicle Tax,N/A,Operational Services,Revenue,Direct Transport Costs,Various Cats - Public Sector,
http://statistics.data.gov.uk/search?search=E07000114,Thanet District Council,26/04/2017,PC9426,232.50,,DVLA Vehicle Tax,N/A,Operational Services,Revenue,Direct Transport Costs,Various Cats - Public Sector,
http://statistics.data.gov.uk/search?search=E07000114,Thanet District Council,26/04/2017,PC9427,232.50,,DVLA Vehicle Tax,N/A,Operational Services,Revenue,Direct Transport Costs,Various Cats - Public Sector,
http://statistics.data.gov.uk/search?search=E07000114,Thanet District Council,26/04/2017,PC9428,232.50,,DVLA Vehicle Tax,N/A,Operational Services,Revenue,Direct Transport Costs,Various Cats - Public Sector,
http://statistics.data.gov.uk/search?search=E07000114,Thanet District Council,26/04/2017,PC9429,232.50,,DVLA Vehicle Tax,N/A,Operational Services,Revenue,Direct Transport Costs,Various Cats - Public Sector,
http://statistics.data.gov.uk/search?search=E07000114,Thanet District Council,26/04/2017,PC9430,232.50,,DVLA Vehicle Tax,N/A,Operational Services,Revenue,Direct Transport Costs,Various Cats - Public Sector,
http://statistics.data.gov.uk/search?search=E07000114,Thanet District Council,26/04/2017,PC9431,167.50,,DVLA Vehicle Tax,N/A,Operational Services,Revenue,Direct Transport Costs,Various Cats - Public Sector,
http://statistics.data.gov.uk/search?search=E07000114,Thanet District Council,26/04/2017,PC9432,167.50,,DVLA Vehicle Tax,N/A,Operational Services,Revenue,Direct Transport Costs,Various Cats - Public Sector,
http://statistics.data.gov.uk/search?search=E07000114,Thanet District Council,26/04/2017,PC9433,167.50,,DVLA Vehicle Tax,N/A,Operational Services,Revenue,Direct Transport Costs,Various Cats - Public Sector,
http://statistics.data.gov.uk/search?search=E07000114,Thanet District Council,26/04/2017,PC9434,167.50,,DVLA Vehicle Tax,N/A,Operational Services,Revenue,Direct Transport Costs,Various Cats - Public Sector,
http://statistics.data.gov.uk/search?search=E07000114,Thanet District Council,26/04/2017,PC9435,167.50,,DVLA Vehicle Tax,N/A,Operational Services,Revenue,Direct Transport Costs,Various Cats - Public Sector,
http://statistics.data.gov.uk/search?search=E07000114,Thanet District Council,26/04/2017,PC9436,167.50,,DVLA Vehicle Tax,N/A,Operational Services,Revenue,Direct Transport Costs,Various Cats - Public Sector,
http://statistics.data.gov.uk/search?search=E07000114,Thanet District Council,26/04/2017,PC9468,232.50,,DVLA Vehicle Tax,N/A,Operational Services,Revenue,Direct Transport Costs,Various Cats - Public Sector,
http://statistics.data.gov.uk/search?search=E07000114,Thanet District Council,26/04/2017,PC9505,27.49,,Elepos.Com,N/A,East Kent Shared Services,Revenue,"Print, Stat And Gen Off Exps",Stationery,
http://statistics.data.gov.uk/search?search=E07000114,Thanet District Council,26/04/2017,PC9475,1.32,,Facebook Ireland Ltd,N/A,East Kent Shared Services,Revenue,"Print, Stat And Gen Off Exps",Facilities And Management Serv,
http://statistics.data.gov.uk/search?search=E07000114,Thanet District Council,26/04/2017,PC9476,214.36,,Facebook Ireland Ltd,N/A,East Kent Shared Services,Revenue,"Print, Stat And Gen Off Exps",Facilities And Management Serv,
http://statistics.data.gov.uk/search?search=E07000114,Thanet District Council,26/04/2017,PC9477,121.14,,Facebook Ireland Ltd,N/A,Community Services,Revenue,Miscellaneous Expenses,Facilities And Management Serv,
http://statistics.data.gov.uk/search?search=E07000114,Thanet District Council,26/04/2017,428907,4500.00,,Finden Consulting Ltd,FIN014,Corporate Resources and S151,Revenue,Training,Human Resources,
http://statistics.data.gov.uk/search?search=E07000114,Thanet District Council,26/04/2017,PC9464,284.99,,Flotech Performance Systems,N/A,Community Services,Revenue,Services,Environmental Services,
http://statistics.data.gov.uk/search?search=E07000114,Thanet District Council,26/04/2017,PC9512,1764.52,,Gartner UK,N/A,East Kent Shared Services,Revenue,Catering,Human Resources,
http://statistics.data.gov.uk/search?search=E07000114,Thanet District Council,26/04/2017,429709,1105.00,,Hays Specialist Recruitment Ltd,HAY020,Corporate Resources and S151,Balance Sheet,Council Dwellings,Human Resources,
http://statistics.data.gov.uk/search?search=E07000114,Thanet District Council,26/04/2017,429911,3000.00,,Hays Specialist Recruitment Ltd,HAY020,Corporate Resources and S151,Revenue,Services,Human Resources,
http://statistics.data.gov.uk/search?search=E07000114,Thanet District Council,26/04/2017,PC9523,493.00,,Hilton Birmingham,N/A,Operational Services,Revenue,Miscellaneous Expenses,Human Resources,
http://statistics.data.gov.uk/search?search=E07000114,Thanet District Council,26/04/2017,PC9528,989.96,,Hilton Birmingham,N/A,Operational Services,Revenue,Miscellaneous Expenses,Human Resources,
http://statistics.data.gov.uk/search?search=E07000114,Thanet District Council,26/04/2017,PC9543,393.00,,Hilton Birmingham,N/A,Operational Services,Revenue,Miscellaneous Expenses,Human Resources,
http://statistics.data.gov.uk/search?search=E07000114,Thanet District Council,26/04/2017,PC9469,69.00,,HMCTS-Kent099,N/A,East Kent Shared Services,Revenue,Communications & Computing,Various Cats - Public Sector,
http://statistics.data.gov.uk/search?search=E07000114,Thanet District Council,26/04/2017,PC9470,33.00,,HMCTS-Kent099,N/A,East Kent Shared Services,Revenue,Communications & Computing,Various Cats - Public Sector,
http://statistics.data.gov.uk/search?search=E07000114,Thanet District Council,26/04/2017,PC9471,75.00,,HMCTS-Kent099,N/A,East Kent Shared Services,Revenue,Communications & Computing,Various Cats - Public Sector,
http://statistics.data.gov.uk/search?search=E07000114,Thanet District Council,26/04/2017,PC9472,462.00,,HMCTS-Kent099,N/A,East Kent Shared Services,Revenue,Communications & Computing,Various Cats - Public Sector,
http://statistics.data.gov.uk/search?search=E07000114,Thanet District Council,26/04/2017,PC9473,306.00,,HMCTS-Kent099,N/A,East Kent Shared Services,Revenue,Communications & Computing,Various Cats - Public Sector,
http://statistics.data.gov.uk/search?search=E07000114,Thanet District Council,26/04/2017,PC9474,1284.00,,HMCTS-Kent099,N/A,East Kent Shared Services,Revenue,Communications & Computing,Various Cats - Public Sector,
http://statistics.data.gov.uk/search?search=E07000114,Thanet District Council,26/04/2017,PC9507,245.00,,HMCTS-Kent099,N/A,East Kent Shared Services,Revenue,Services,Various Cats - Public Sector,
http://statistics.data.gov.uk/search?search=E07000114,Thanet District Council,26/04/2017,PC9508,245.00,,HMCTS-Kent099,N/A,East Kent Shared Services,Revenue,Services,Various Cats - Public Sector,
http://statistics.data.gov.uk/search?search=E07000114,Thanet District Council,26/04/2017,PC9509,245.00,,HMCTS-Kent099,N/A,East Kent Shared Services,Revenue,Services,Various Cats - Public Sector,
http://statistics.data.gov.uk/search?search=E07000114,Thanet District Council,26/04/2017,PC9513,1683.00,,HMCTS-Kent099,N/A,East Kent Shared Services,Revenue,Services,Various Cats - Public Sector,
http://statistics.data.gov.uk/search?search=E07000114,Thanet District Council,26/04/2017,PC9514,354.00,,HMCTS-Kent099,N/A,East Kent Shared Services,Revenue,Services,Various Cats - Public Sector,
http://statistics.data.gov.uk/search?search=E07000114,Thanet District Council,26/04/2017,PC9515,1581.00,,HMCTS-Kent099,N/A,East Kent Shared Services,Revenue,Services,Various Cats - Public Sector,
http://statistics.data.gov.uk/search?search=E07000114,Thanet District Council,26/04/2017,PC9516,39.00,,HMCTS-Kent099,N/A,East Kent Shared Services,Revenue,Services,Various Cats - Public Sector,
http://statistics.data.gov.uk/search?search=E07000114,Thanet District Council,26/04/2017,PC9517,12.00,,HMCTS-Kent099,N/A,East Kent Shared Services,Revenue,Services,Various Cats - Public Sector,
http://statistics.data.gov.uk/search?search=E07000114,Thanet District Council,26/04/2017,PC9518,96.00,,HMCTS-Kent099,N/A,East Kent Shared Services,Revenue,Services,Various Cats - Public Sector,
http://statistics.data.gov.uk/search?search=E07000114,Thanet District Council,26/04/2017,PC9420,79.10,,London & South Eastern,N/A,Community Services,Revenue,Grants & Subscriptions,Human Resources,
http://statistics.data.gov.uk/search?search=E07000114,Thanet District Council,26/04/2017,PC9451,66.20,,London & South Eastern,N/A,Community Services,Revenue,Public Transport,Human Resources,
http://statistics.data.gov.uk/search?search=E07000114,Thanet District Council,26/04/2017,PC9454,12.50,,London & South Eastern,N/A,Operational Services,Revenue,Public Transport,Human Resources,
http://statistics.data.gov.uk/search?search=E07000114,Thanet District Council,26/04/2017,PC9496,249.00,,London & South Eastern,N/A,Operational Services,Revenue,Public Transport,Human Resources,
http://statistics.data.gov.uk/search?search=E07000114,Thanet District Council,26/04/2017,PC9498,66.20,,London & South Eastern,N/A,Community Services,Revenue,Public Transport,Human Resources,
http://statistics.data.gov.uk/search?search=E07000114,Thanet District Council,26/04/2017,430835,8322.50,,Manston Parish Council,MAN001,Corporate Resources and S151,Balance Sheet,Collection Fund - Preceptors,Various Cats - Public Sector,
http://statistics.data.gov.uk/search?search=E07000114,Thanet District Council,26/04/2017,430835,1545.20,,Manston Parish Council,MAN001,Operational Services,Revenue,Other Local Authorities,Various Cats - Public Sector,
http://statistics.data.gov.uk/search?search=E07000114,Thanet District Council,26/04/2017,430836,36276.00,,Margate Charter Trustees,MCT001,Corporate Resources and S151,Balance Sheet,Collection Fund - Preceptors,Various Cats - Public Sector,
http://statistics.data.gov.uk/search?search=E07000114,Thanet District Council,26/04/2017,430836,8688.53,,Margate Charter Trustees,MCT001,Operational Services,Revenue,Other Local Authorities,Various Cats - Public Sector,
http://statistics.data.gov.uk/search?search=E07000114,Thanet District Council,26/04/2017,427877,261.47,,Mears Ltd,MEA003,Corporate Governance,Revenue,"Repairs,  Alter & Mtce - Build",Construction-Repair And Maint,
http://statistics.data.gov.uk/search?search=E07000114,Thanet District Council,26/04/2017,429474,1318.95,,Mears Ltd,MEA003,Corporate Governance,Revenue,"Repairs,  Alter & Mtce - Build",Construction-Repair And Maint,
http://statistics.data.gov.uk/search?search=E07000114,Thanet District Council,26/04/2017,429501,3509.14,,Mears Ltd,MEA003,Corporate Governance,Revenue,"Repairs,  Alter & Mtce - Build",Construction-Repair And Maint,
http://statistics.data.gov.uk/search?search=E07000114,Thanet District Council,26/04/2017,429502,1134.78,,Mears Ltd,MEA003,Corporate Governance,Revenue,"Repairs,  Alter & Mtce - Build",Construction-Repair And Maint,
http://statistics.data.gov.uk/search?search=E07000114,Thanet District Council,26/04/2017,429502,266.96,,Mears Ltd,MEA003,Operational Services,Revenue,"Repairs,  Alter & Mtce - Build",Construction-Repair And Maint,
http://statistics.data.gov.uk/search?search=E07000114,Thanet District Council,26/04/2017,429521,13805.23,,Mears Ltd,MEA003,Corporate Resources and S151,Balance Sheet,Repairs And Mtce Holding A/C,Construction-Repair And Maint,
http://statistics.data.gov.uk/search?search=E07000114,Thanet District Council,26/04/2017,429524,13906.31,,Mears Ltd,MEA003,Corporate Resources and S151,Balance Sheet,Repairs And Mtce Holding A/C,Construction-Repair And Maint,
http://statistics.data.gov.uk/search?search=E07000114,Thanet District Council,26/04/2017,429526,5101.12,,Mears Ltd,MEA003,Corporate Resources and S151,Balance Sheet,Repairs And Mtce Holding A/C,Construction-Repair And Maint,
http://statistics.data.gov.uk/search?search=E07000114,Thanet District Council,26/04/2017,429527,18312.95,,Mears Ltd,MEA003,Corporate Resources and S151,Balance Sheet,Repairs And Mtce Holding A/C,Construction-Repair And Maint,
http://statistics.data.gov.uk/search?search=E07000114,Thanet District Council,26/04/2017,429528,1173.82,,Mears Ltd,MEA003,Corporate Resources and S151,Balance Sheet,Repairs And Mtce Holding A/C,Construction-Repair And Maint,
http://statistics.data.gov.uk/search?search=E07000114,Thanet District Council,26/04/2017,429529,35597.89,,Mears Ltd,MEA003,Corporate Resources and S151,Balance Sheet,Repairs And Mtce Holding A/C,Construction-Repair And Maint,
http://statistics.data.gov.uk/search?search=E07000114,Thanet District Council,26/04/2017,429650,680.22,,Mears Ltd,MEA003,Corporate Resources and S151,Balance Sheet,Repairs And Mtce Holding A/C,Construction-Repair And Maint,
http://statistics.data.gov.uk/search?search=E07000114,Thanet District Council,26/04/2017,429652,4830.00,,Mears Ltd,MEA003,Corporate Resources and S151,Balance Sheet,Repairs And Mtce Holding A/C,Construction-Repair And Maint,
http://statistics.data.gov.uk/search?search=E07000114,Thanet District Council,26/04/2017,429879,259.13,,Mears Ltd,MEA003,Corporate Governance,Revenue,"Repairs,  Alter & Mtce - Build",Construction-Repair And Maint,
http://statistics.data.gov.uk/search?search=E07000114,Thanet District Council,26/04/2017,429880,218.48,,Mears Ltd,MEA003,Operational Services,Revenue,"Repairs,  Alter & Mtce - Build",Construction-Repair And Maint,
http://statistics.data.gov.uk/search?search=E07000114,Thanet District Council,26/04/2017,429881,81.07,,Mears Ltd,MEA003,Operational Services,Revenue,"Equip, Furniture And Materials",Construction-Repair And Maint,
http://statistics.data.gov.uk/search?search=E07000114,Thanet District Council,26/04/2017,429881,260.94,,Mears Ltd,MEA003,Operational Services,Revenue,"Repairs,  Alter & Mtce - Build",Construction-Repair And Maint,
http://statistics.data.gov.uk/search?search=E07000114,Thanet District Council,26/04/2017,PC9490,55.90,,Meon Ltd,N/A,Operational Services,Revenue,"Equip, Furniture And Materials",Building Construction Material,
http://statistics.data.gov.uk/search?search=E07000114,Thanet District Council,26/04/2017,429271,435.77,,Midland Software Limited,MID013,East Kent Shared Services,Revenue,Communications & Computing,Ict,
http://statistics.data.gov.uk/search?search=E07000114,Thanet District Council,26/04/2017,430837,27784.00,,Minster Parish Council,MIN001,Corporate Resources and S151,Balance Sheet,Collection Fund - Preceptors,Various Cats - Public Sector,
http://statistics.data.gov.uk/search?search=E07000114,Thanet District Council,26/04/2017,430837,15565.01,,Minster Parish Council,MIN001,Operational Services,Revenue,Other Local Authorities,Various Cats - Public Sector,
http://statistics.data.gov.uk/search?search=E07000114,Thanet District Council,26/04/2017,430838,4155.50,,Monkton Parish Council,MON001,Corporate Resources and S151,Balance Sheet,Collection Fund - Preceptors,Various Cats - Public Sector,
http://statistics.data.gov.uk/search?search=E07000114,Thanet District Council,26/04/2017,430838,1134.04,,Monkton Parish Council,MON001,Operational Services,Revenue,Other Local Authorities,Various Cats - Public Sector,
http://statistics.data.gov.uk/search?search=E07000114,Thanet District Council,26/04/2017,PC9519,201.00,,Office Furniture On Line Ltd,N/A,Operational Services,Revenue,"Equip, Furniture And Materials",Furniture & Soft Furnishings,
http://statistics.data.gov.uk/search?search=E07000114,Thanet District Council,26/04/2017,PC9493,160.00,,Original Style Ltd,N/A,Operational Services,Revenue,"Repairs,  Alter & Mtce - Build",Building Construction Material,
http://statistics.data.gov.uk/search?search=E07000114,Thanet District Council,26/04/2017,PC9494,3.84,,Original Style Ltd,N/A,Operational Services,Revenue,"Repairs,  Alter & Mtce - Build",Building Construction Material,
http://statistics.data.gov.uk/search?search=E07000114,Thanet District Council,26/04/2017,430277,6250.00,,Otterham Consulting Limited,OTT004,Corporate Governance,Revenue,Services,Consultancy,
http://statistics.data.gov.uk/search?search=E07000114,Thanet District Council,26/04/2017,PC9407,109.98,,Panel Warehouse,N/A,Community Services,Revenue,"Equip, Furniture And Materials",Facilities And Management Serv,
http://statistics.data.gov.uk/search?search=E07000114,Thanet District Council,26/04/2017,PC9489,35.00,,Petals Florist,N/A,Operational Services,Revenue,"Equip, Furniture And Materials",Horticulture,
http://statistics.data.gov.uk/search?search=E07000114,Thanet District Council,26/04/2017,PC9529,82.87,,Pizza Express,N/A,Operational Services,Revenue,Miscellaneous Expenses,Human Resources,
http://statistics.data.gov.uk/search?search=E07000114,Thanet District Council,26/04/2017,PC9416,325.00,,Possessionclaim.Gov,N/A,Community Services,Revenue,Services,Various Cats - Public Sector,
http://statistics.data.gov.uk/search?search=E07000114,Thanet District Council,26/04/2017,PC9488,121.00,,Possessionclaim.Gov,N/A,Community Services,Revenue,Services,Various Cats - Public Sector,
http://statistics.data.gov.uk/search?search=E07000114,Thanet District Council,26/04/2017,PC9465,652.50,,Post Office Counter,N/A,Operational Services,Revenue,Direct Transport Costs,Vehicle Management,
http://statistics.data.gov.uk/search?search=E07000114,Thanet District Council,26/04/2017,PC9466,652.50,,Post Office Counter,N/A,Operational Services,Revenue,Direct Transport Costs,Vehicle Management,
http://statistics.data.gov.uk/search?search=E07000114,Thanet District Council,26/04/2017,PC9467,652.50,,Post Office Counter,N/A,Operational Services,Revenue,Direct Transport Costs,Vehicle Management,
http://statistics.data.gov.uk/search?search=E07000114,Thanet District Council,26/04/2017,PC9511,280.00,,Premier Inn,N/A,East Kent Shared Services,Revenue,Expenses,Human Resources,
http://statistics.data.gov.uk/search?search=E07000114,Thanet District Council,26/04/2017,PC9459,99.00,,Proconferences,N/A,Corporate Governance,Revenue,Expenses,Human Resources,
http://statistics.data.gov.uk/search?search=E07000114,Thanet District Council,26/04/2017,PC9460,99.00,,Proconferences,N/A,Corporate Governance,Revenue,Expenses,Human Resources,
http://statistics.data.gov.uk/search?search=E07000114,Thanet District Council,26/04/2017,PC9445,298.80,,Quarterman Windscreens,N/A,Operational Services,Revenue,Direct Transport Costs,Vehicle Management,
http://statistics.data.gov.uk/search?search=E07000114,Thanet District Council,26/04/2017,430839,289263.00,,Ramsgate Town Council,RAM031,Corporate Resources and S151,Balance Sheet,Collection Fund - Preceptors,Various Cats - Public Sector,
http://statistics.data.gov.uk/search?search=E07000114,Thanet District Council,26/04/2017,430839,32266.35,,Ramsgate Town Council,RAM031,Operational Services,Revenue,Other Local Authorities,Various Cats - Public Sector,
http://statistics.data.gov.uk/search?search=E07000114,Thanet District Council,26/04/2017,430842,41389.50,,River Stour (Kent) Int Drainage Brd,RIV001,Community Services,Revenue,Rates,Various Categories,
http://statistics.data.gov.uk/search?search=E07000114,Thanet District Council,26/04/2017,PC9524,201.20,,Royal Mail,N/A,Community Services,Revenue,Miscellaneous Expenses,Mail Services,
http://statistics.data.gov.uk/search?search=E07000114,Thanet District Council,26/04/2017,PC9497,58.33,,Screwfix Direct,N/A,Operational Services,Revenue,"Equip, Furniture And Materials",Building Construction Material,
http://statistics.data.gov.uk/search?search=E07000114,Thanet District Council,26/04/2017,PC9521,68.80,,Shell,N/A,Operational Services,Revenue,Miscellaneous Expenses,Vehicle Management,
http://statistics.data.gov.uk/search?search=E07000114,Thanet District Council,26/04/2017,PC9417,158.20,,Southeastern Web,N/A,Corporate Resources and S151,Revenue,Public Transport,Human Resources,
http://statistics.data.gov.uk/search?search=E07000114,Thanet District Council,26/04/2017,PC9418,132.00,,Southeastern Web,N/A,Corporate Resources and S151,Revenue,Public Transport,Human Resources,
http://statistics.data.gov.uk/search?search=E07000114,Thanet District Council,26/04/2017,PC9422,69.90,,Southeastern Web,N/A,Community Services,Revenue,Public Transport,Human Resources,
http://statistics.data.gov.uk/search?search=E07000114,Thanet District Council,26/04/2017,PC9457,125.00,,Southeastern Web,N/A,Community Services,Revenue,Public Transport,Human Resources,
http://statistics.data.gov.uk/search?search=E07000114,Thanet District Council,26/04/2017,PC9458,35.00,,Southeastern Web,N/A,East Kent Shared Services,Revenue,Public Transport,Human Resources,
http://statistics.data.gov.uk/search?search=E07000114,Thanet District Council,26/04/2017,PC9506,-28.50,,Southeastern Web,N/A,Corporate Resources and S151,Revenue,Public Transport,Human Resources,
http://statistics.data.gov.uk/search?search=E07000114,Thanet District Council,26/04/2017,430840,7987.00,,St Nicholas At Wade & Sarre P Counc,STN001,Corporate Resources and S151,Balance Sheet,Collection Fund - Preceptors,Various Cats - Public Sector,
http://statistics.data.gov.uk/search?search=E07000114,Thanet District Council,26/04/2017,430840,366.50,,St Nicholas At Wade & Sarre P Counc,STN001,Operational Services,Revenue,Grants & Subscriptions,Various Cats - Public Sector,
http://statistics.data.gov.uk/search?search=E07000114,Thanet District Council,26/04/2017,430840,4256.38,,St Nicholas At Wade & Sarre P Counc,STN001,Operational Services,Revenue,Other Local Authorities,Various Cats - Public Sector,
http://statistics.data.gov.uk/search?search=E07000114,Thanet District Council,26/04/2017,PC9499,7.17,,Standfast Burglar Alarm,N/A,Operational Services,Revenue,"Equip, Furniture And Materials",Facilities And Management Serv,
http://statistics.data.gov.uk/search?search=E07000114,Thanet District Council,26/04/2017,PC9501,147.95,24.66,Style Roses,N/A,Operational Services,Revenue,"Equip, Furniture And Materials",Horticulture,
http://statistics.data.gov.uk/search?search=E07000114,Thanet District Council,26/04/2017,429679,795.97,,Swale Heating Ltd,SWA006,Corporate Resources and S151,Balance Sheet,Repairs And Mtce Holding A/C,Building Construction Material,
http://statistics.data.gov.uk/search?search=E07000114,Thanet District Council,26/04/2017,PC9479,7.00,,Tesco Stores,N/A,Operational Services,Revenue,Catering,Catering,
http://statistics.data.gov.uk/search?search=E07000114,Thanet District Council,26/04/2017,PC9522,26.65,,TGI Fridays NEC,N/A,Operational Services,Revenue,Miscellaneous Expenses,Human Resources,
http://statistics.data.gov.uk/search?search=E07000114,Thanet District Council,26/04/2017,PC9504,355.00,,Thanet County Court,N/A,Community Services,Revenue,Services,Various Cats - Public Sector,
http://statistics.data.gov.uk/search?search=E07000114,Thanet District Council,26/04/2017,PC9520,313.30,,The Freeman Company (UK) Ltd,N/A,Operational Services,Revenue,Miscellaneous Expenses,Building Construction Material,
http://statistics.data.gov.uk/search?search=E07000114,Thanet District Council,26/04/2017,429570,3587.50,,The Glenwood Hotel,GLE007,Community Services,Revenue,Services,Housing Management,
http://statistics.data.gov.uk/search?search=E07000114,Thanet District Council,26/04/2017,429571,2570.84,,The Glenwood Hotel,GLE007,Community Services,Revenue,Services,Housing Management,
http://statistics.data.gov.uk/search?search=E07000114,Thanet District Council,26/04/2017,429572,3266.69,,The Glenwood Hotel,GLE007,Community Services,Revenue,Services,Housing Management,
http://statistics.data.gov.uk/search?search=E07000114,Thanet District Council,26/04/2017,429573,1574.99,,The Glenwood Hotel,GLE007,Community Services,Revenue,Services,Housing Management,
http://statistics.data.gov.uk/search?search=E07000114,Thanet District Council,26/04/2017,PC9525,70.00,,The Post Office,N/A,Community Services,Revenue,"Equip, Furniture And Materials",Mail Services,
http://statistics.data.gov.uk/search?search=E07000114,Thanet District Council,26/04/2017,PC9453,19.90,,Till Roll Depot,N/A,Operational Services,Revenue,"Equip, Furniture And Materials",Stationery,
http://statistics.data.gov.uk/search?search=E07000114,Thanet District Council,26/04/2017,PC9536,36.06,,Trainline,N/A,Community Services,Revenue,Public Transport,Human Resources,
http://statistics.data.gov.uk/search?search=E07000114,Thanet District Council,26/04/2017,PC9510,355.83,,Travelodge,N/A,East Kent Shared Services,Revenue,Expenses,Human Resources,
http://statistics.data.gov.uk/search?search=E07000114,Thanet District Council,26/04/2017,PC9484,269.45,,Trews,N/A,Operational Services,Revenue,"Clothes, Uniforms & Laundry",Clothing,
http://statistics.data.gov.uk/search?search=E07000114,Thanet District Council,26/04/2017,PC9450,193.99,32.34,Uttings,N/A,Operational Services,Revenue,"Equip, Furniture And Materials",Facilities And Management Serv,
http://statistics.data.gov.uk/search?search=E07000114,Thanet District Council,26/04/2017,PC9461,164.05,,Virgin Trains,N/A,Community Services,Revenue,Public Transport,Human Resources,
http://statistics.data.gov.uk/search?search=E07000114,Thanet District Council,26/04/2017,430841,49020.00,,Westgate On Sea Town Council,WES052,Corporate Resources and S151,Balance Sheet,Collection Fund - Preceptors,Various Cats - Public Sector,
http://statistics.data.gov.uk/search?search=E07000114,Thanet District Council,26/04/2017,430841,1699.89,,Westgate On Sea Town Council,WES052,Operational Services,Revenue,Other Local Authorities,Various Cats - Public Sector,
http://statistics.data.gov.uk/search?search=E07000114,Thanet District Council,26/04/2017,PC9526,5.00,,WH Smith,N/A,Community Services,Revenue,"Equip, Furniture And Materials",Stationery,
http://statistics.data.gov.uk/search?search=E07000114,Thanet District Council,26/04/2017,PC9527,446.76,,Workwear Giant,N/A,Operational Services,Revenue,Miscellaneous Expenses,Clothing,
http://statistics.data.gov.uk/search?search=E07000114,Thanet District Council,26/04/2017,PC9481,-9.29,,Z:Multiware,N/A,Corporate Resources and S151,Revenue,"Equip, Furniture And Materials",Stationery,
http://statistics.data.gov.uk/search?search=E07000114,Thanet District Council,27/04/2017,429560,1818.79,,Allstar Business Solutions Ltd,ALL038,Operational Services,Revenue,Direct Transport Costs,Vehicle Management,
http://statistics.data.gov.uk/search?search=E07000114,Thanet District Council,27/04/2017,430899,1080.19,,Co-Operative Bank Paypoint,COO018,Corporate Resources and S151,Revenue,Services,Financial Services,
http://statistics.data.gov.uk/search?search=E07000114,Thanet District Council,27/04/2017,430899,360.06,,Co-Operative Bank Paypoint,COO018,Community Services,Revenue,Services,Financial Services,
http://statistics.data.gov.uk/search?search=E07000114,Thanet District Council,27/04/2017,430898,264.93,,Nat West Bank,NWE001,Corporate Resources and S151,Revenue,Services,Various Categories,
http://statistics.data.gov.uk/search?search=E07000114,Thanet District Council,27/04/2017,430661,30900.00,,Public Works Loan Board,PWL001,Corporate Resources and S151,Balance Sheet,Debit Interest And Expenses,Investments And Loans,
http://statistics.data.gov.uk/search?search=E07000114,Thanet District Council,27/04/2017,430669,147845.48,,Public Works Loan Board,PWL001,Corporate Resources and S151,Balance Sheet,Debit Interest And Expenses,Investments And Loans,
http://statistics.data.gov.uk/search?search=E07000114,Thanet District Council,27/04/2017,430913,42857.14,,Public Works Loan Board,PWL001,Corporate Resources and S151,Balance Sheet,Borrowing Repayable>1 Yr,Investments And Loans,
http://statistics.data.gov.uk/search?search=E07000114,Thanet District Council,27/04/2017,430913,25080.00,,Public Works Loan Board,PWL001,Corporate Resources and S151,Balance Sheet,Debit Interest And Expenses,Investments And Loans,
http://statistics.data.gov.uk/search?search=E07000114,Thanet District Council,27/04/2017,430895,725.85,,Santander,SAN017,Corporate Resources and S151,Revenue,Services,Various Categories,
http://statistics.data.gov.uk/search?search=E07000114,Thanet District Council,27/04/2017,430896,1103.17,,Santander,SAN017,Corporate Resources and S151,Revenue,Services,Various Categories,
http://statistics.data.gov.uk/search?search=E07000114,Thanet District Council,27/04/2017,430896,367.72,,Santander,SAN017,Community Services,Revenue,Services,Various Categories,
http://statistics.data.gov.uk/search?search=E07000114,Thanet District Council,27/04/2017,430902,3089.84,,Worldpay Ltd,WOR008,Corporate Resources and S151,Revenue,Services,Financial Services,
http://statistics.data.gov.uk/search?search=E07000114,Thanet District Council,27/04/2017,430904,614.18,,Worldpay Ltd,WOR008,Corporate Resources and S151,Revenue,Services,Financial Services,
http://statistics.data.gov.uk/search?search=E07000114,Thanet District Council,27/04/2017,430905,3034.11,,Worldpay Ltd,WOR008,Corporate Resources and S151,Revenue,Services,Financial Services,
